Publisher Label,Publisher URI,"Supplier","Net Amount (£)","Organisational Unit","Merchant Category Code","Purpose","Payment Date"
"Wolverhampton City Council","http://opendatacommunities.org/id/metropolitan-district-council/wolverhampton","WWW.CONCEPT2.CO.UK","30.41","Aldersley Leisure Village","5941","Equipment - R & M","31/08/2016"
"Wolverhampton City Council","http://opendatacommunities.org/id/metropolitan-district-council/wolverhampton","HM PASSPORT OFFICE","72.50","LAC Transitions Team","9399","Client Allowances","31/08/2016"
"Wolverhampton City Council","http://opendatacommunities.org/id/metropolitan-district-council/wolverhampton","Virgintrains.co.uk","144.20","Housing Regeneration - Strategy & Dev","4112","Public Transport","31/08/2016"
"Wolverhampton City Council","http://opendatacommunities.org/id/metropolitan-district-council/wolverhampton","Trainline.com Ltd","10.05","Global Budgets","4112","Public Transport","31/08/2016"
"Wolverhampton City Council","http://opendatacommunities.org/id/metropolitan-district-council/wolverhampton","TESCO STORES 6197","158.46","LAC Transitions Team","5411","Client Allowances","31/08/2016"
"Wolverhampton City Council","http://opendatacommunities.org/id/metropolitan-district-council/wolverhampton","BookingPayments_V2","26.67","CIN/CP S17 SW Unit - Area 6","7011","Services - Fees and Charges","31/08/2016"
"Wolverhampton City Council","http://opendatacommunities.org/id/metropolitan-district-council/wolverhampton","SIGMA IMAGING (UK)","425.00","Archives","5946","Equipment - Purchase","31/08/2016"
"Wolverhampton City Council","http://opendatacommunities.org/id/metropolitan-district-council/wolverhampton","WWW.AMBERHAWK.COM","125.00","Central Training","7399","Training Expenses","31/08/2016"
"Wolverhampton City Council","http://opendatacommunities.org/id/metropolitan-district-council/wolverhampton","THE POST OFFICE","578.00","Legal Services","9402","Comms - Postage","31/08/2016"
"Wolverhampton City Council","http://opendatacommunities.org/id/metropolitan-district-council/wolverhampton","MYBEDFRAMES","59.80","CIN/CP S17 SW Unit - Area 7","5712","Furniture","31/08/2016"
"Wolverhampton City Council","http://opendatacommunities.org/id/metropolitan-district-council/wolverhampton","ARGOS RETAIL GROUP","157.45","LAC Transitions Team","5310","Client Allowances","31/08/2016"
"Wolverhampton City Council","http://opendatacommunities.org/id/metropolitan-district-council/wolverhampton","BRITANNIA","28.33","Emergency Duty Team","7011","Services - Supplies & Services to users","30/08/2016"
"Wolverhampton City Council","http://opendatacommunities.org/id/metropolitan-district-council/wolverhampton","ASDA HOME SHOPPING","-0.16","Ernest Bold Court","5411","Provisions (Not for resale)","30/08/2016"
"Wolverhampton City Council","http://opendatacommunities.org/id/metropolitan-district-council/wolverhampton","ASDA HOME SHOPPING","97.57","Ernest Bold Court","5411","Provisions (Not for resale)","30/08/2016"
"Wolverhampton City Council","http://opendatacommunities.org/id/metropolitan-district-council/wolverhampton","RAYNOR STORES","3.12","Mayoral Expenses","5499","Stationery","30/08/2016"
"Wolverhampton City Council","http://opendatacommunities.org/id/metropolitan-district-council/wolverhampton","BARCLAYS BANK PLC","250.00","CIN/CP S17 SW Unit - Area 6","6011","Services - Fees and Charges","29/08/2016"
"Wolverhampton City Council","http://opendatacommunities.org/id/metropolitan-district-council/wolverhampton","WATERSTONES","100.00","Environmental Health - Pub Prot - Gen","5942","Services - Fees and Charges","29/08/2016"
"Wolverhampton City Council","http://opendatacommunities.org/id/metropolitan-district-council/wolverhampton","Amazon EU","20.82","Environmental Health - Pub Prot - Gen","5969","Equipment - Purchase","29/08/2016"
"Wolverhampton City Council","http://opendatacommunities.org/id/metropolitan-district-council/wolverhampton","PAYPAL  BIOTOPE LTD","282.50","Environmental Health - Pub Prot - Gen","0742","Equipment - Purchase","29/08/2016"
"Wolverhampton City Council","http://opendatacommunities.org/id/metropolitan-district-council/wolverhampton","ASDA SUPERSTORE","25.75","CIN/CP S17 SW Unit - Area 5","5411","Provisions (Not for resale)","29/08/2016"
"Wolverhampton City Council","http://opendatacommunities.org/id/metropolitan-district-council/wolverhampton","WWW.MOVERSANDSHAKERS.U","47.50","Strategic Director Place","8699","Conference Expenses","29/08/2016"
"Wolverhampton City Council","http://opendatacommunities.org/id/metropolitan-district-council/wolverhampton","TROPICAL ICE","75.00","Catering Overhead Account","5046","Provisions (Resale)","29/08/2016"
"Wolverhampton City Council","http://opendatacommunities.org/id/metropolitan-district-council/wolverhampton","ASDA HOME SHOPPING","-0.50","Ernest Bold Court","5411","Provisions (Not for resale)","29/08/2016"
"Wolverhampton City Council","http://opendatacommunities.org/id/metropolitan-district-council/wolverhampton","ASDA HOME SHOPPING","102.73","Ernest Bold Court","5411","Provisions (Not for resale)","29/08/2016"
"Wolverhampton City Council","http://opendatacommunities.org/id/metropolitan-district-council/wolverhampton","Amazon UK Marketplace","5.98","Upper Pendeford Farm Childrens Home","5942","Equipment - Health and Safety","29/08/2016"
"Wolverhampton City Council","http://opendatacommunities.org/id/metropolitan-district-council/wolverhampton","THE SPORTS WAREHOUSE L","495.48","Aldersley Leisure Village","7997","Materials for resale","29/08/2016"
"Wolverhampton City Council","http://opendatacommunities.org/id/metropolitan-district-council/wolverhampton","FACEBK ZKTWD9EB92","37.88","Communications & Marketing - General","7311","Marketing \ Non-staff advertising","29/08/2016"
"Wolverhampton City Council","http://opendatacommunities.org/id/metropolitan-district-council/wolverhampton","FACEBK YKTWD9EB92","562.28","Communications & Marketing - General","7311","Marketing \ Non-staff advertising","29/08/2016"
"Wolverhampton City Council","http://opendatacommunities.org/id/metropolitan-district-council/wolverhampton","ARGOS RETAIL GROUP","209.99","LAC Team","5310","Financial Assistance In Exceptional Circ","29/08/2016"
"Wolverhampton City Council","http://opendatacommunities.org/id/metropolitan-district-council/wolverhampton","Amazon UK Marketplace","20.15","EIP Locality 8","5942","Equipment - Purchase","29/08/2016"
"Wolverhampton City Council","http://opendatacommunities.org/id/metropolitan-district-council/wolverhampton","YOUNGS SHOE REPAIRS LI","50.15","Wolverhampton Indoor and Open Market","7251","Fixtures and Fittings - R&M","29/08/2016"
"Wolverhampton City Council","http://opendatacommunities.org/id/metropolitan-district-council/wolverhampton","Amazon Svcs Europe,SAR","23.40","Upper Pendeford Farm Childrens Home","5942","Equipment - Health and Safety","29/08/2016"
"Wolverhampton City Council","http://opendatacommunities.org/id/metropolitan-district-council/wolverhampton","Amazon UK Marketplace","23.14","Upper Pendeford Farm Childrens Home","5942","Equipment - Health and Safety","29/08/2016"
"Wolverhampton City Council","http://opendatacommunities.org/id/metropolitan-district-council/wolverhampton","BRITANNIA","122.00","Mental Health Assessment & Care Mgmt","7011","Services - Supplies & Services to users","29/08/2016"
"Wolverhampton City Council","http://opendatacommunities.org/id/metropolitan-district-council/wolverhampton","Amazon EU","13.87","School Improvement","5969","Equipment - Purchase","29/08/2016"
"Wolverhampton City Council","http://opendatacommunities.org/id/metropolitan-district-council/wolverhampton","AUTOCRAFT TELFORD LTD","319.46","Fleet Management","7538","Services - Professional Fees","29/08/2016"
"Wolverhampton City Council","http://opendatacommunities.org/id/metropolitan-district-council/wolverhampton","SAINSBURYS","250.00","Childrens with Disabilities Team","6011","Financial Assistance In Exceptional Circ","29/08/2016"
"Wolverhampton City Council","http://opendatacommunities.org/id/metropolitan-district-council/wolverhampton","ARGOS LTD","24.14","Duke Street Bungalows","5310","Equipment - Purchase","29/08/2016"
"Wolverhampton City Council","http://opendatacommunities.org/id/metropolitan-district-council/wolverhampton","Amazon UK Marketplace","9.28","Strategic ICTS (ICT Serv Budget)","5942","Computing - Purchase of Hardware","29/08/2016"
"Wolverhampton City Council","http://opendatacommunities.org/id/metropolitan-district-council/wolverhampton","CUMMINGS BROTHERS LOCK","5.00","Assessment Team (East)","7399","Equipment - Purchase","29/08/2016"
"Wolverhampton City Council","http://opendatacommunities.org/id/metropolitan-district-council/wolverhampton","Amazon UK Marketplace","59.90","Independent Living Service","5942","Books","29/08/2016"
"Wolverhampton City Council","http://opendatacommunities.org/id/metropolitan-district-council/wolverhampton","B & Q 1243","9.06","Learning Disabilities Management","5211","Equipment - R & M","29/08/2016"
"Wolverhampton City Council","http://opendatacommunities.org/id/metropolitan-district-council/wolverhampton","LOVE2SHOP.CO.UK","244.25","European Liaison","8641","Clothing / Uniforms","26/08/2016"
"Wolverhampton City Council","http://opendatacommunities.org/id/metropolitan-district-council/wolverhampton","WEST MID TRAVEL","216.85","European Liaison","4131","Client Transport","26/08/2016"
"Wolverhampton City Council","http://opendatacommunities.org/id/metropolitan-district-council/wolverhampton","TRAINLINE","77.72","LAC Transitions Team","4112","Client Allowances","26/08/2016"
"Wolverhampton City Council","http://opendatacommunities.org/id/metropolitan-district-council/wolverhampton","ASDA HOME SHOPPING","-2.05","Upper Pendeford Farm Childrens Home","5411","Provisions (Not for resale)","26/08/2016"
"Wolverhampton City Council","http://opendatacommunities.org/id/metropolitan-district-council/wolverhampton","ASDA HOME SHOPPING","258.50","Upper Pendeford Farm Childrens Home","5411","Provisions (Not for resale)","26/08/2016"
"Wolverhampton City Council","http://opendatacommunities.org/id/metropolitan-district-council/wolverhampton","S & B WASTE","166.50","Old Hall Street Main","4900","Grounds Maintenance - Non Contract","26/08/2016"
"Wolverhampton City Council","http://opendatacommunities.org/id/metropolitan-district-council/wolverhampton","Amazon UK Marketplace","10.93","EIP Locality 8","5942","Equipment - Purchase","26/08/2016"
"Wolverhampton City Council","http://opendatacommunities.org/id/metropolitan-district-council/wolverhampton","ARGOS DIRECT","-479.98","LAC Transitions Team","5310","Equipment - Purchase","26/08/2016"
"Wolverhampton City Council","http://opendatacommunities.org/id/metropolitan-district-council/wolverhampton","PO LOW HILL 1592","150.00","46a, Second Avenue, Low Hill","6011","Provisions (Resale)","26/08/2016"
"Wolverhampton City Council","http://opendatacommunities.org/id/metropolitan-district-council/wolverhampton","PO LOW HILL 1592","30.00","46a, Second Avenue, Low Hill","6011","Provisions (Not for resale)","26/08/2016"
"Wolverhampton City Council","http://opendatacommunities.org/id/metropolitan-district-council/wolverhampton","TRAINLINE","64.77","CIN/CP S17 SW Unit - Area 6","4112","Public Transport","26/08/2016"
"Wolverhampton City Council","http://opendatacommunities.org/id/metropolitan-district-council/wolverhampton","DONCASTER MBC CARD PAY","50.00","AES Staff Development","9399","Training Expenses","26/08/2016"
"Wolverhampton City Council","http://opendatacommunities.org/id/metropolitan-district-council/wolverhampton","LABC","150.00","Central Training","8699","Training Expenses","26/08/2016"
"Wolverhampton City Council","http://opendatacommunities.org/id/metropolitan-district-council/wolverhampton","WWW.CARESHOP.CO.UK","18.05","Ernest Bold Court","5999","Cleaning Supplies and Materials","26/08/2016"
"Wolverhampton City Council","http://opendatacommunities.org/id/metropolitan-district-council/wolverhampton","HALFORDS 0775","89.99","Upper Pendeford Farm Childrens Home","5940","Equipment - Purchase","26/08/2016"
"Wolverhampton City Council","http://opendatacommunities.org/id/metropolitan-district-council/wolverhampton","E01350800000000","9.52","Ernest Bold Court","6011","Equipment - Purchase","26/08/2016"
"Wolverhampton City Council","http://opendatacommunities.org/id/metropolitan-district-council/wolverhampton","ARGOS LTD","99.99","Cemeteries","5310","Equipment - Purchase","26/08/2016"
"Wolverhampton City Council","http://opendatacommunities.org/id/metropolitan-district-council/wolverhampton","WWW.MAPLIN.CO.UK","60.00","Maintenance & Technical Materials","5732","Equipment - Purchase","26/08/2016"
"Wolverhampton City Council","http://opendatacommunities.org/id/metropolitan-district-council/wolverhampton","POST OFFICE COUNTER","26.78","Strategic ICTS (ICT Serv Budget)","9402","Comms - Postage","26/08/2016"
"Wolverhampton City Council","http://opendatacommunities.org/id/metropolitan-district-council/wolverhampton","Amazon UK Marketplace","1.06","Licensing - General","5942","Equipment - Purchase","26/08/2016"
"Wolverhampton City Council","http://opendatacommunities.org/id/metropolitan-district-council/wolverhampton","Amazon UK Marketplace","20.37","Licensing - General","5942","Equipment - Purchase","26/08/2016"
"Wolverhampton City Council","http://opendatacommunities.org/id/metropolitan-district-council/wolverhampton","TRAINLINE","24.68","LAC Transitions Team","4112","Client Allowances","25/08/2016"
"Wolverhampton City Council","http://opendatacommunities.org/id/metropolitan-district-council/wolverhampton","POST OFFICE COUNTER","1.74","Emergency Duty Team","9402","Comms - Postage","25/08/2016"
"Wolverhampton City Council","http://opendatacommunities.org/id/metropolitan-district-council/wolverhampton","WWW.7DAYSHOP.COM","31.78","Expenditure","5311","Equipment - Purchase","25/08/2016"
"Wolverhampton City Council","http://opendatacommunities.org/id/metropolitan-district-council/wolverhampton","Amazon EU","8.79","Expenditure","5969","Equipment - Purchase","25/08/2016"
"Wolverhampton City Council","http://opendatacommunities.org/id/metropolitan-district-council/wolverhampton","Amazon EU","15.69","EIP Locality 8","5969","Equipment - Purchase","25/08/2016"
"Wolverhampton City Council","http://opendatacommunities.org/id/metropolitan-district-council/wolverhampton","Amazon UK Marketplace","189.41","Upper Pendeford Farm Childrens Home","5942","Equipment - Health and Safety","25/08/2016"
"Wolverhampton City Council","http://opendatacommunities.org/id/metropolitan-district-council/wolverhampton","MAILCHIMP","38.47","City Direct","7399","Equipment - Purchase","25/08/2016"
"Wolverhampton City Council","http://opendatacommunities.org/id/metropolitan-district-council/wolverhampton","WEST COAST TRAINS","34.58","Curatorial - Cultural Learning","4112","Public Transport","25/08/2016"
"Wolverhampton City Council","http://opendatacommunities.org/id/metropolitan-district-council/wolverhampton","SCREWFIX DIRECT","66.58","Independent Living Service","5211","Materials","25/08/2016"
"Wolverhampton City Council","http://opendatacommunities.org/id/metropolitan-district-council/wolverhampton","HOMEBASE LTD 103","36.00","Ernest Bold Court","5211","Materials","25/08/2016"
"Wolverhampton City Council","http://opendatacommunities.org/id/metropolitan-district-council/wolverhampton","HAMPSHIRE COUNTY COUNC","326.50","School Improvement","9399","Equipment - Purchase","25/08/2016"
"Wolverhampton City Council","http://opendatacommunities.org/id/metropolitan-district-council/wolverhampton","HAMPSHIRE COUNTY COUNC","380.50","School Improvement","9399","Equipment - Purchase","25/08/2016"
"Wolverhampton City Council","http://opendatacommunities.org/id/metropolitan-district-council/wolverhampton","Amazon EU","56.06","School Improvement","5969","Equipment - Purchase","25/08/2016"
"Wolverhampton City Council","http://opendatacommunities.org/id/metropolitan-district-council/wolverhampton","PREMIER INN","127.99","Fostering Team & Allowances","3811","Services - Supplies & Services to users","25/08/2016"
"Wolverhampton City Council","http://opendatacommunities.org/id/metropolitan-district-council/wolverhampton","POST OFFICE COUNTER","176.00","Fostering Team & Allowances","9402","Comms - Postage","25/08/2016"
"Wolverhampton City Council","http://opendatacommunities.org/id/metropolitan-district-council/wolverhampton","POST OFFICE COUNTER","48.00","Fostering Team & Allowances","9402","Comms - Postage","25/08/2016"
"Wolverhampton City Council","http://opendatacommunities.org/id/metropolitan-district-council/wolverhampton","E.ON ENERGY SOLUTIONS","100.00","CIN/CP S17 SW Unit - Area 5","4900","Electricity","25/08/2016"
"Wolverhampton City Council","http://opendatacommunities.org/id/metropolitan-district-council/wolverhampton","CARVER/WOLVERHAMPTON/L","67.39","Northicote Farm","5211","Materials","25/08/2016"
"Wolverhampton City Council","http://opendatacommunities.org/id/metropolitan-district-council/wolverhampton","PO LOW HILL 1592","180.00","EIP Locality 7","6011","Educ Trips, Holidays, Outings, Activity","25/08/2016"
"Wolverhampton City Council","http://opendatacommunities.org/id/metropolitan-district-council/wolverhampton","PO LOW HILL 1592","250.00","EIP Locality 7","6011","Educ Trips, Holidays, Outings, Activity","25/08/2016"
"Wolverhampton City Council","http://opendatacommunities.org/id/metropolitan-district-council/wolverhampton","CARVER/WOLVERHAMPTON/L","16.14","Wholesale Market Facilities Management","5211","R&M - Departmental planned (external)","25/08/2016"
"Wolverhampton City Council","http://opendatacommunities.org/id/metropolitan-district-council/wolverhampton","TIMPSON LTD","70.00","Blakenhall Commty & Healthy Living Ctr","7251","Fixtures and Fittings - R&M","25/08/2016"
"Wolverhampton City Council","http://opendatacommunities.org/id/metropolitan-district-council/wolverhampton","123-REG.CO.UK","-13.98","Technical Support","4816","Subscriptions","25/08/2016"
"Wolverhampton City Council","http://opendatacommunities.org/id/metropolitan-district-council/wolverhampton","SAINSBURYS (2340)","31.14","46a, Second Avenue, Low Hill","5411","Provisions (Not for resale)","25/08/2016"
"Wolverhampton City Council","http://opendatacommunities.org/id/metropolitan-district-council/wolverhampton","Amazon EU","20.69","EIP Locality 4","5969","Books","25/08/2016"
"Wolverhampton City Council","http://opendatacommunities.org/id/metropolitan-district-council/wolverhampton","Amazon UK Marketplace","60.00","Inclusion Support","5942","Equipment - Purchase","25/08/2016"
"Wolverhampton City Council","http://opendatacommunities.org/id/metropolitan-district-council/wolverhampton","WILKO RETAIL LIMIT","17.33","Admin & Support","5722","Equipment - Purchase","25/08/2016"
"Wolverhampton City Council","http://opendatacommunities.org/id/metropolitan-district-council/wolverhampton","Amazon UK Marketplace","12.60","Parking Enforcement","5942","Equipment - Purchase","25/08/2016"
"Wolverhampton City Council","http://opendatacommunities.org/id/metropolitan-district-council/wolverhampton","Amazon UK Marketplace","184.26","Parking Enforcement","5942","Equipment - Purchase","25/08/2016"
"Wolverhampton City Council","http://opendatacommunities.org/id/metropolitan-district-council/wolverhampton","Amazon EU","12.49","Legal Services","5969","Equipment - Purchase","24/08/2016"
"Wolverhampton City Council","http://opendatacommunities.org/id/metropolitan-district-council/wolverhampton","WWW.PRINTED4U.CO.U","1188.11","WV Active Business Support","5943","Marketing \ Non-staff advertising","24/08/2016"
"Wolverhampton City Council","http://opendatacommunities.org/id/metropolitan-district-council/wolverhampton","PAYPAL  WTONBIZFOR","10.00","Communications & Marketing - General","8398","Marketing \ Non-staff advertising","24/08/2016"
"Wolverhampton City Council","http://opendatacommunities.org/id/metropolitan-district-council/wolverhampton","E01510300000000","60.00","Emergency Duty Team","6011","Financial Assistance In Exceptional Circ","24/08/2016"
"Wolverhampton City Council","http://opendatacommunities.org/id/metropolitan-district-council/wolverhampton","DUNELM (SOFT FURNISHIN","20.82","LAC Transitions Team","5714","Client Allowances","24/08/2016"
"Wolverhampton City Council","http://opendatacommunities.org/id/metropolitan-district-council/wolverhampton","ARGOS LTD","38.32","LAC Transitions Team","5310","Client Allowances","24/08/2016"
"Wolverhampton City Council","http://opendatacommunities.org/id/metropolitan-district-council/wolverhampton","TVLICENSING.CO.UK","145.50","LAC Transitions Team","7392","Client Allowances","24/08/2016"
"Wolverhampton City Council","http://opendatacommunities.org/id/metropolitan-district-council/wolverhampton","PAYPAL  BUNZLRETAIL","58.90","Ernest Bold Court","5047","Services - Professional Fees","24/08/2016"
"Wolverhampton City Council","http://opendatacommunities.org/id/metropolitan-district-council/wolverhampton","THE COAL AUTHORITY","45.24","Legal Services","9399","Services - Fees and Charges","24/08/2016"
"Wolverhampton City Council","http://opendatacommunities.org/id/metropolitan-district-council/wolverhampton","ARGOS RETAIL GROUP","103.27","LAC Transitions Team","5310","Client Allowances","24/08/2016"
"Wolverhampton City Council","http://opendatacommunities.org/id/metropolitan-district-council/wolverhampton","HOBBY CRAFT LTD","23.33","Education And Access","5970","Materials","24/08/2016"
"Wolverhampton City Council","http://opendatacommunities.org/id/metropolitan-district-council/wolverhampton","CUMMINGS BROTHERS LOCK","3.33","Parkfields Centre","7399","R&M - Departmental planned (external)","24/08/2016"
"Wolverhampton City Council","http://opendatacommunities.org/id/metropolitan-district-council/wolverhampton","CT WOLVERHAMPTON","130.00","EIP Locality 1","8398","Services - Supplies & Services to users","24/08/2016"
"Wolverhampton City Council","http://opendatacommunities.org/id/metropolitan-district-council/wolverhampton","PO LOW HILL 1592","200.00","46a, Second Avenue, Low Hill","6011","Provisions (Not for resale)","24/08/2016"
"Wolverhampton City Council","http://opendatacommunities.org/id/metropolitan-district-council/wolverhampton","THE NATIONAL LIBRARY","60.00","Art Gallery","5942","Equipment - Purchase","24/08/2016"
"Wolverhampton City Council","http://opendatacommunities.org/id/metropolitan-district-council/wolverhampton","CT SANDWELL","-150.00","CIN/CP S17 SW Unit - Area 5","8398","Financial Assistance In Exceptional Circ","24/08/2016"
"Wolverhampton City Council","http://opendatacommunities.org/id/metropolitan-district-council/wolverhampton","NATWEST BANK","200.00","CIN/CP S17 SW Unit - Area 5","6011","Financial Assistance In Exceptional Circ","24/08/2016"
"Wolverhampton City Council","http://opendatacommunities.org/id/metropolitan-district-council/wolverhampton","NATWEST BANK","200.00","CIN/CP S17 SW Unit - Area 5","6011","Financial Assistance In Exceptional Circ","24/08/2016"
"Wolverhampton City Council","http://opendatacommunities.org/id/metropolitan-district-council/wolverhampton","BT PAY BY PHONE","133.80","Makers Dozen","4814","Comms - Telephone Call charges","24/08/2016"
"Wolverhampton City Council","http://opendatacommunities.org/id/metropolitan-district-council/wolverhampton","AMAZON UK RETAIL AMAZO","13.87","School Improvement","5999","Equipment - Purchase","24/08/2016"
"Wolverhampton City Council","http://opendatacommunities.org/id/metropolitan-district-council/wolverhampton","AMAZON UK RETAIL AMAZO","13.87","School Improvement","5999","Equipment - Purchase","24/08/2016"
"Wolverhampton City Council","http://opendatacommunities.org/id/metropolitan-district-council/wolverhampton","Amazon EU","13.87","School Improvement","5969","Equipment - Purchase","24/08/2016"
"Wolverhampton City Council","http://opendatacommunities.org/id/metropolitan-district-council/wolverhampton","E.ON ENERGY SOLUTIONS","100.00","CIN/CP S17 SW Unit - Area 5","4900","Electricity","24/08/2016"
"Wolverhampton City Council","http://opendatacommunities.org/id/metropolitan-district-council/wolverhampton","POST OFFICE COUNTER","36.86","CIN/CP S17 SW Unit - Area 5","9402","Comms - Postage","24/08/2016"
"Wolverhampton City Council","http://opendatacommunities.org/id/metropolitan-district-council/wolverhampton","TFM FARM & COUNTRY SUP","65.15","Culwell Street Depot","5399","Equipment - Purchase","24/08/2016"
"Wolverhampton City Council","http://opendatacommunities.org/id/metropolitan-district-council/wolverhampton","WICKES","40.18","Northicote Farm","5211","Materials","24/08/2016"
"Wolverhampton City Council","http://opendatacommunities.org/id/metropolitan-district-council/wolverhampton","SUITES AND BEDS","162.50","CIN/CP S17 SW Unit - Area 8","5712","Furniture","24/08/2016"
"Wolverhampton City Council","http://opendatacommunities.org/id/metropolitan-district-council/wolverhampton","Virgintrains.co.uk","181.40","Adoption and Residence Team & Allowances","4112","Public Transport","24/08/2016"
"Wolverhampton City Council","http://opendatacommunities.org/id/metropolitan-district-council/wolverhampton","NOTEMACHINE","250.00","CIN/CP S17 SW Unit - Area 6","6011","Financial Assistance In Exceptional Circ","24/08/2016"
"Wolverhampton City Council","http://opendatacommunities.org/id/metropolitan-district-council/wolverhampton","LION PICTURE FRAMING S","438.50","Maintenance & Technical Materials","5999","Equipment - Purchase","24/08/2016"
"Wolverhampton City Council","http://opendatacommunities.org/id/metropolitan-district-council/wolverhampton","SP  PUB CHALKBOARDS","98.80","Northicote Farm","7372","Equipment - Purchase","24/08/2016"
"Wolverhampton City Council","http://opendatacommunities.org/id/metropolitan-district-council/wolverhampton","WWW.SOLACE.ORG.UK","520.00","Delivery & OCE Development","8699","Conference Expenses","23/08/2016"
"Wolverhampton City Council","http://opendatacommunities.org/id/metropolitan-district-council/wolverhampton","SLG LIGHTING LTD","181.21","Generic Marketing","5211","Materials","23/08/2016"
"Wolverhampton City Council","http://opendatacommunities.org/id/metropolitan-district-council/wolverhampton","THE NEW BRIDGE GUEST H","45.00","Emergency Duty Team","7011","Services - Supplies & Services to users","23/08/2016"
"Wolverhampton City Council","http://opendatacommunities.org/id/metropolitan-district-council/wolverhampton","ARGOS LTD","120.93","LAC Transitions Team","5310","Client Allowances","23/08/2016"
"Wolverhampton City Council","http://opendatacommunities.org/id/metropolitan-district-council/wolverhampton","POUNDLAND LTD 1463","4.17","City Direct","5310","Equipment - Purchase","23/08/2016"
"Wolverhampton City Council","http://opendatacommunities.org/id/metropolitan-district-council/wolverhampton","POST OFFICE COUNTER","55.00","EIP Locality 1","9402","Comms - Postage","23/08/2016"
"Wolverhampton City Council","http://opendatacommunities.org/id/metropolitan-district-council/wolverhampton","123-REG.CO.UK","13.98","Technical Support","4816","Subscriptions","23/08/2016"
"Wolverhampton City Council","http://opendatacommunities.org/id/metropolitan-district-council/wolverhampton","ASDA SUPERSTORE","18.00","EIP Locality 3","5411","Provisions (Not for resale)","23/08/2016"
"Wolverhampton City Council","http://opendatacommunities.org/id/metropolitan-district-council/wolverhampton","ASDA HOME SHOPPING","-1.20","Ernest Bold Court","5411","Provisions (Not for resale)","23/08/2016"
"Wolverhampton City Council","http://opendatacommunities.org/id/metropolitan-district-council/wolverhampton","ASDA HOME SHOPPING","94.52","Ernest Bold Court","5411","Provisions (Not for resale)","23/08/2016"
"Wolverhampton City Council","http://opendatacommunities.org/id/metropolitan-district-council/wolverhampton","ARGOS RETAIL GROUP","244.99","CIN/CP S17 SW Unit - Area 5","5310","Equipment - Purchase","23/08/2016"
"Wolverhampton City Council","http://opendatacommunities.org/id/metropolitan-district-council/wolverhampton","LEWIS'S MEDICAL SUPPLI","9.25","Cycling Schemes - Bikeability","5047","First Aid Requisites","23/08/2016"
"Wolverhampton City Council","http://opendatacommunities.org/id/metropolitan-district-council/wolverhampton","BRITANNIA","300.00","Mental Health Assessment & Care Mgmt","7011","Services - Supplies & Services to users","23/08/2016"
"Wolverhampton City Council","http://opendatacommunities.org/id/metropolitan-district-council/wolverhampton","BRITANNIA","7.00","Mental Health Assessment & Care Mgmt","7011","Services - Supplies & Services to users","23/08/2016"
"Wolverhampton City Council","http://opendatacommunities.org/id/metropolitan-district-council/wolverhampton","PARTRIDGE & PRINT","198.00","Fostering Team & Allowances","8299","Training Expenses","23/08/2016"
"Wolverhampton City Council","http://opendatacommunities.org/id/metropolitan-district-council/wolverhampton","UNTOUCHABLES","33.33","Cemeteries","5231","Materials","23/08/2016"
"Wolverhampton City Council","http://opendatacommunities.org/id/metropolitan-district-council/wolverhampton","TRAINLINE","56.71","Adoption and Residence Team & Allowances","4112","Public Transport","23/08/2016"
"Wolverhampton City Council","http://opendatacommunities.org/id/metropolitan-district-council/wolverhampton","TRAINLINE","24.68","LAC Transitions Team","4112","Client Allowances","22/08/2016"
"Wolverhampton City Council","http://opendatacommunities.org/id/metropolitan-district-council/wolverhampton","TRAINLINE","152.08","LAC Transitions Team","4112","Client Allowances","22/08/2016"
"Wolverhampton City Council","http://opendatacommunities.org/id/metropolitan-district-council/wolverhampton","Virgintrains.co.uk","255.00","LAC Team","4112","Public Transport","22/08/2016"
"Wolverhampton City Council","http://opendatacommunities.org/id/metropolitan-district-council/wolverhampton","HM PASSPORT OFFICE","46.00","LAC Team","9399","Services - Fees and Charges","22/08/2016"
"Wolverhampton City Council","http://opendatacommunities.org/id/metropolitan-district-council/wolverhampton","ROYAL CARPETS","175.00","LAC Transitions Team","5713","Client Allowances","22/08/2016"
"Wolverhampton City Council","http://opendatacommunities.org/id/metropolitan-district-council/wolverhampton","WILKO.COM","103.50","CIN - Referral Hub","5722","Stationery","22/08/2016"
"Wolverhampton City Council","http://opendatacommunities.org/id/metropolitan-district-council/wolverhampton","Amazon EU","9.17","Blakenhall Commty & Healthy Living Ctr","5969","Equipment - Purchase","22/08/2016"
"Wolverhampton City Council","http://opendatacommunities.org/id/metropolitan-district-council/wolverhampton","PEACOCK STORES","14.00","CIN/CP S17 SW Unit - Area 8","5331","Clothing / Uniforms","22/08/2016"
"Wolverhampton City Council","http://opendatacommunities.org/id/metropolitan-district-council/wolverhampton","MATALAN","10.00","Mayoral Expenses","5691","Clothing / Uniforms","22/08/2016"
"Wolverhampton City Council","http://opendatacommunities.org/id/metropolitan-district-council/wolverhampton","AMAZON UK RETAIL AMAZO","49.20","School Improvement","5999","Equipment - Purchase","22/08/2016"
"Wolverhampton City Council","http://opendatacommunities.org/id/metropolitan-district-council/wolverhampton","ASDA HOME SHOPPING","-1.55","Ernest Bold Court","5411","Provisions (Not for resale)","22/08/2016"
"Wolverhampton City Council","http://opendatacommunities.org/id/metropolitan-district-council/wolverhampton","ASDA HOME SHOPPING","98.62","Ernest Bold Court","5411","Provisions (Not for resale)","22/08/2016"
"Wolverhampton City Council","http://opendatacommunities.org/id/metropolitan-district-council/wolverhampton","SAINSBURYS SACAT 2040","5.00","Ernest Bold Court","5411","Provisions (Not for resale)","22/08/2016"
"Wolverhampton City Council","http://opendatacommunities.org/id/metropolitan-district-council/wolverhampton","ARGOS DIRECT","138.94","CIN/CP S17 SW Unit - Area 4","5310","Equipment - Purchase","22/08/2016"
"Wolverhampton City Council","http://opendatacommunities.org/id/metropolitan-district-council/wolverhampton","LILLIAN ROSE FLOWERS","49.98","Legal Services","5992","Equipment - Purchase","22/08/2016"
"Wolverhampton City Council","http://opendatacommunities.org/id/metropolitan-district-council/wolverhampton","NATIONAL GRID GAS","1200.00","Legal Services","5722","Equipment - Purchase","22/08/2016"
"Wolverhampton City Council","http://opendatacommunities.org/id/metropolitan-district-council/wolverhampton","ARGOS LTD","59.99","Upper Pendeford Farm Childrens Home","5310","Equipment - Purchase","22/08/2016"
"Wolverhampton City Council","http://opendatacommunities.org/id/metropolitan-district-council/wolverhampton","PREMIER INN","-82.98","Adoption and Residence Team & Allowances","3811","Accommodation Costs","22/08/2016"
"Wolverhampton City Council","http://opendatacommunities.org/id/metropolitan-district-council/wolverhampton","PREMIER INN","82.98","Adoption and Residence Team & Allowances","3811","Accommodation Costs","22/08/2016"
"Wolverhampton City Council","http://opendatacommunities.org/id/metropolitan-district-council/wolverhampton","Virgintrains.co.uk","84.80","Fostering Team & Allowances","4112","Public Transport","22/08/2016"
"Wolverhampton City Council","http://opendatacommunities.org/id/metropolitan-district-council/wolverhampton","TESCO PFS 2185","13.20","Ground Maintenance Overheads","5541","Materials","22/08/2016"
"Wolverhampton City Council","http://opendatacommunities.org/id/metropolitan-district-council/wolverhampton","MARSHALLS","30.00","Landscape","5211","Materials","22/08/2016"
"Wolverhampton City Council","http://opendatacommunities.org/id/metropolitan-district-council/wolverhampton","TESCO DELIVERY SAVER2","2.50","Towers Outdoor Education Centre","5968","Provisions (Not for resale)","22/08/2016"
"Wolverhampton City Council","http://opendatacommunities.org/id/metropolitan-district-council/wolverhampton","SHROPSHIRE COUNCIL","11.00","CIN/CP S17 SW Unit - Area 6","8220","Services - Fees and Charges","22/08/2016"
"Wolverhampton City Council","http://opendatacommunities.org/id/metropolitan-district-council/wolverhampton","Amazon UK Marketplace","31.80","EIP Locality 7","5942","Equipment - Purchase","22/08/2016"
"Wolverhampton City Council","http://opendatacommunities.org/id/metropolitan-district-council/wolverhampton","Virgintrains.co.uk","191.10","Planning","4112","Public Transport","22/08/2016"
"Wolverhampton City Council","http://opendatacommunities.org/id/metropolitan-district-council/wolverhampton","SAINSBURYS (2340)","6.25","Generic Marketing","5411","Provisions (Not for resale)","19/08/2016"
"Wolverhampton City Council","http://opendatacommunities.org/id/metropolitan-district-council/wolverhampton","INNER SPACE CONCESSION","553.50","Communications & Marketing - General","7311","Events","19/08/2016"
"Wolverhampton City Council","http://opendatacommunities.org/id/metropolitan-district-council/wolverhampton","WWW.COFFEESUPPLIESDIRE","137.18","Archives","5331","Equipment - Purchase","19/08/2016"
"Wolverhampton City Council","http://opendatacommunities.org/id/metropolitan-district-council/wolverhampton","WISEPOPSCOM","38.31","City Direct","7372","Computing - Purchase of Software","19/08/2016"
"Wolverhampton City Council","http://opendatacommunities.org/id/metropolitan-district-council/wolverhampton","B & Q 1243","5.80","Caretakers Community Centre","5211","R&M - Departmental planned (external)","19/08/2016"
"Wolverhampton City Council","http://opendatacommunities.org/id/metropolitan-district-council/wolverhampton","ASDA SUPERSTORE","10.00","CIN/CP Social Work Unit - Area 5","5411","Provisions (Not for resale)","19/08/2016"
"Wolverhampton City Council","http://opendatacommunities.org/id/metropolitan-district-council/wolverhampton","Wix.com","93.13","Technical Support","5817","Subscriptions","19/08/2016"
"Wolverhampton City Council","http://opendatacommunities.org/id/metropolitan-district-council/wolverhampton","CT SANDWELL","230.00","CIN/CP S17 SW Unit - Area 5","8398","Financial Assistance In Exceptional Circ","19/08/2016"
"Wolverhampton City Council","http://opendatacommunities.org/id/metropolitan-district-council/wolverhampton","PHS GROUP","964.12","The Maltings","7399","Cleaning Supplies and Materials","19/08/2016"
"Wolverhampton City Council","http://opendatacommunities.org/id/metropolitan-district-council/wolverhampton","HOBBY CRAFT LTD","93.80","Adoption and Residence Team & Allowances","5970","Materials","19/08/2016"
"Wolverhampton City Council","http://opendatacommunities.org/id/metropolitan-district-council/wolverhampton","CORAM ACADEMY LTD","40.00","Adoption and Residence Team & Allowances","8398","Services - Supplies & Services to users","19/08/2016"
"Wolverhampton City Council","http://opendatacommunities.org/id/metropolitan-district-council/wolverhampton","MOT TESTER & AUTHO","30.00","Fleet Management","5969","Stationery","19/08/2016"
"Wolverhampton City Council","http://opendatacommunities.org/id/metropolitan-district-council/wolverhampton","Amazon EU","10.98","EIP Locality 7","5969","Equipment - Purchase","19/08/2016"
"Wolverhampton City Council","http://opendatacommunities.org/id/metropolitan-district-council/wolverhampton","SPORTSDIRECT.COM","487.49","Aldersley Leisure Village","5941","Equipment - Purchase","19/08/2016"
"Wolverhampton City Council","http://opendatacommunities.org/id/metropolitan-district-council/wolverhampton","PCS Eventmen Ltd","211.12","Communications & Marketing - General","7929","Events","18/08/2016"
"Wolverhampton City Council","http://opendatacommunities.org/id/metropolitan-district-council/wolverhampton","FACEBK BFZ3L9SB92","56.48","Communications & Marketing - General","7311","Marketing \ Non-staff advertising","18/08/2016"
"Wolverhampton City Council","http://opendatacommunities.org/id/metropolitan-district-council/wolverhampton","FACEBK AFZ3L9SB92","543.55","Communications & Marketing - General","7311","Marketing \ Non-staff advertising","18/08/2016"
"Wolverhampton City Council","http://opendatacommunities.org/id/metropolitan-district-council/wolverhampton","Virgintrains.co.uk","164.60","LAC Team","4112","Public Transport","18/08/2016"
"Wolverhampton City Council","http://opendatacommunities.org/id/metropolitan-district-council/wolverhampton","WM MORRISONS","21.00","Upper Pendeford Farm Childrens Home","5411","Provisions (Not for resale)","18/08/2016"
"Wolverhampton City Council","http://opendatacommunities.org/id/metropolitan-district-council/wolverhampton","LOYD WEDNESFIELD WOLVE","100.00","EIP Locality 8","6011","Equipment - Purchase","18/08/2016"
"Wolverhampton City Council","http://opendatacommunities.org/id/metropolitan-district-council/wolverhampton","POST OFFICE COUNTER","110.00","EIP Locality 8","9402","Comms - Postage","18/08/2016"
"Wolverhampton City Council","http://opendatacommunities.org/id/metropolitan-district-council/wolverhampton","Amazon UK Marketplace","93.12","Headstart","5942","Books","18/08/2016"
"Wolverhampton City Council","http://opendatacommunities.org/id/metropolitan-district-council/wolverhampton","Amazon UK Marketplace","149.99","Headstart","5942","Books","18/08/2016"
"Wolverhampton City Council","http://opendatacommunities.org/id/metropolitan-district-council/wolverhampton","HUGHES","148.33","LAC Transitions Team","5732","Client Allowances","18/08/2016"
"Wolverhampton City Council","http://opendatacommunities.org/id/metropolitan-district-council/wolverhampton","ASDA SUPERSTORE","24.50","CIN/CP Social Work Unit - Area 5","5411","Provisions (Not for resale)","18/08/2016"
"Wolverhampton City Council","http://opendatacommunities.org/id/metropolitan-district-council/wolverhampton","SAINSBURYS 2040","14.30","Duke Street Bungalows","5411","Provisions (Not for resale)","18/08/2016"
"Wolverhampton City Council","http://opendatacommunities.org/id/metropolitan-district-council/wolverhampton","MAPLIN ROTHERHAM S63","462.85","Global Budgets","5732","Equipment - Purchase","18/08/2016"
"Wolverhampton City Council","http://opendatacommunities.org/id/metropolitan-district-council/wolverhampton","MAPLIN ROTHERHAM S63","469.56","Global Budgets","5732","Equipment - Purchase","18/08/2016"
"Wolverhampton City Council","http://opendatacommunities.org/id/metropolitan-district-council/wolverhampton","MAPLIN ROTHERHAM S63","67.08","Global Budgets","5732","Equipment - Purchase","18/08/2016"
"Wolverhampton City Council","http://opendatacommunities.org/id/metropolitan-district-council/wolverhampton","TFM FARM & COUNTRY SUP","179.70","Northicote Farm","5399","Materials","18/08/2016"
"Wolverhampton City Council","http://opendatacommunities.org/id/metropolitan-district-council/wolverhampton","TFM FARM & COUNTRY SUP","194.68","Northicote Farm","5399","Equipment - Purchase","18/08/2016"
"Wolverhampton City Council","http://opendatacommunities.org/id/metropolitan-district-council/wolverhampton","CUMMINGS BROTHERS LOCK","45.83","Wholesale Market Facilities Management","7399","R&M - Departmental planned (external)","18/08/2016"
"Wolverhampton City Council","http://opendatacommunities.org/id/metropolitan-district-council/wolverhampton","VERIFONE TAXI/PRIVATE","27.50","CIN/CP S17 SW Unit - Area 6","4121","Client Transport","18/08/2016"
"Wolverhampton City Council","http://opendatacommunities.org/id/metropolitan-district-council/wolverhampton","WEST COAST TRAINS","129.00","Older People Assessment & Care Mgmt","4112","Public Transport","18/08/2016"
"Wolverhampton City Council","http://opendatacommunities.org/id/metropolitan-district-council/wolverhampton","WICKES","23.40","Play General","5211","Materials","18/08/2016"
"Wolverhampton City Council","http://opendatacommunities.org/id/metropolitan-district-council/wolverhampton","ARGOS RETAIL GROUP","69.67","CIN/CP S17 SW Unit - Area 5","5310","Financial Assistance In Exceptional Circ","18/08/2016"
"Wolverhampton City Council","http://opendatacommunities.org/id/metropolitan-district-council/wolverhampton","CAMERA SOLUTIONS LTD","1201.67","Archives","5946","Equipment - Purchase","18/08/2016"
"Wolverhampton City Council","http://opendatacommunities.org/id/metropolitan-district-council/wolverhampton","REGISTRARS OFFICE","30.00","Legal Services","8299","Training Expenses","18/08/2016"
"Wolverhampton City Council","http://opendatacommunities.org/id/metropolitan-district-council/wolverhampton","REGISTRARS OFFICE","60.00","Legal Services","8299","Training Expenses","18/08/2016"
"Wolverhampton City Council","http://opendatacommunities.org/id/metropolitan-district-council/wolverhampton","EXPEDIA","87.42","Mental Health Assessment & Care Mgmt","4722","Accommodation Costs","18/08/2016"
"Wolverhampton City Council","http://opendatacommunities.org/id/metropolitan-district-council/wolverhampton","EXPEDIA","193.59","Mental Health Assessment & Care Mgmt","4722","Accommodation Costs","18/08/2016"
"Wolverhampton City Council","http://opendatacommunities.org/id/metropolitan-district-council/wolverhampton","WWW.PMGLTD.CO.UK","385.00","School Improvement","7399","Conference Expenses","18/08/2016"
"Wolverhampton City Council","http://opendatacommunities.org/id/metropolitan-district-council/wolverhampton","Amazon EU","19.97","School Improvement","5969","Equipment - Purchase","18/08/2016"
"Wolverhampton City Council","http://opendatacommunities.org/id/metropolitan-district-council/wolverhampton","J P LENNARD LTD","36.00","Central Baths","5941","Equipment - Purchase","17/08/2016"
"Wolverhampton City Council","http://opendatacommunities.org/id/metropolitan-district-council/wolverhampton","CURRYS ONLINE","89.99","CIN/CP S17 SW Unit - Area 3B","5732","Equipment - Purchase","17/08/2016"
"Wolverhampton City Council","http://opendatacommunities.org/id/metropolitan-district-council/wolverhampton","ASDA SUPERSTORE","100.00","CIN/CP S17 SW Unit - Area 3B","5411","Provisions (Not for resale)","17/08/2016"
"Wolverhampton City Council","http://opendatacommunities.org/id/metropolitan-district-council/wolverhampton","ASDA SUPERSTORE","200.00","CIN/CP S17 SW Unit - Area 3B","5411","Provisions (Not for resale)","17/08/2016"
"Wolverhampton City Council","http://opendatacommunities.org/id/metropolitan-district-council/wolverhampton","FACEBK 3FRHX8NA82","200.03","Other Support Services","7311","Marketing \ Non-staff advertising","17/08/2016"
"Wolverhampton City Council","http://opendatacommunities.org/id/metropolitan-district-council/wolverhampton","BOOKWHENCOM","186.00","Headstart","5734","Computing - Purchase of Software","17/08/2016"
"Wolverhampton City Council","http://opendatacommunities.org/id/metropolitan-district-council/wolverhampton","EXPEDIA","300.76","CIN/CP S17 SW Unit - Area 3A","4722","Accommodation Costs","17/08/2016"
"Wolverhampton City Council","http://opendatacommunities.org/id/metropolitan-district-council/wolverhampton","EXPEDIA","300.76","CIN/CP S17 SW Unit - Area 3A","4722","Accommodation Costs","17/08/2016"
"Wolverhampton City Council","http://opendatacommunities.org/id/metropolitan-district-council/wolverhampton","SAINSBURYS (2340)","22.17","Black Art Movement","5411","Provisions (Not for resale)","17/08/2016"
"Wolverhampton City Council","http://opendatacommunities.org/id/metropolitan-district-council/wolverhampton","SCREWFIX DIRECT LT","49.97","Culwell Street Depot","5211","R&M - Departmental planned (external)","17/08/2016"
"Wolverhampton City Council","http://opendatacommunities.org/id/metropolitan-district-council/wolverhampton","TIPPERS WOLVERHAMPTON","12.40","Culwell Street Depot","5072","R&M - Departmental planned (external)","17/08/2016"
"Wolverhampton City Council","http://opendatacommunities.org/id/metropolitan-district-council/wolverhampton","CENTURY ELECTRICAL WHO","15.60","Traffic Signals","5065","Equipment - R & M","17/08/2016"
"Wolverhampton City Council","http://opendatacommunities.org/id/metropolitan-district-council/wolverhampton","NATURAL HIST. MUSEUM","187.20","NHM Wildlife Photographer of the Year","5970","Materials for resale","17/08/2016"
"Wolverhampton City Council","http://opendatacommunities.org/id/metropolitan-district-council/wolverhampton","MEDIA & COMMUNICATIONS","298.00","Revenues","4812","Comms - Mobile Telephones","17/08/2016"
"Wolverhampton City Council","http://opendatacommunities.org/id/metropolitan-district-council/wolverhampton","AMAZON UK RETAIL AMAZO","7.60","Blakenhall Commty & Healthy Living Ctr","5999","Equipment - Purchase","17/08/2016"
"Wolverhampton City Council","http://opendatacommunities.org/id/metropolitan-district-council/wolverhampton","CT WOLVERHAMPTON","10.00","EIP Locality 3","8398","Financial Assistance In Exceptional Circ","17/08/2016"
"Wolverhampton City Council","http://opendatacommunities.org/id/metropolitan-district-council/wolverhampton","B & Q 1243","6.81","Duke Street Bungalows","5211","Equipment - R & M","17/08/2016"
"Wolverhampton City Council","http://opendatacommunities.org/id/metropolitan-district-council/wolverhampton","JONES SKIP HIRE (WOLVE","176.12","Vulnerable Young Persons Team","7399","Equipment - Purchase","17/08/2016"
"Wolverhampton City Council","http://opendatacommunities.org/id/metropolitan-district-council/wolverhampton","ASDA HOME SHOPPING","-0.27","Ernest Bold Court","5411","Provisions (Not for resale)","17/08/2016"
"Wolverhampton City Council","http://opendatacommunities.org/id/metropolitan-district-council/wolverhampton","NOTEMACHINE","240.00","CIN/CP S17 SW Unit - Area 6","6011","Financial Assistance In Exceptional Circ","17/08/2016"
"Wolverhampton City Council","http://opendatacommunities.org/id/metropolitan-district-council/wolverhampton","WICKES","19.16","Play General","5211","Materials","17/08/2016"
"Wolverhampton City Council","http://opendatacommunities.org/id/metropolitan-district-council/wolverhampton","ASDA SUPERSTORE","5.00","Parking Enforcement","5411","Provisions (Not for resale)","17/08/2016"
"Wolverhampton City Council","http://opendatacommunities.org/id/metropolitan-district-council/wolverhampton","B&M RETAIL","19.98","Ernest Bold Court","5310","Equipment - Purchase","17/08/2016"
"Wolverhampton City Council","http://opendatacommunities.org/id/metropolitan-district-council/wolverhampton","FONE ZONE","20.83","Mayoral Expenses","4812","Comms - Mobile Telephones","17/08/2016"
"Wolverhampton City Council","http://opendatacommunities.org/id/metropolitan-district-council/wolverhampton","WOLVES CC","120.00","CIN/CP S17 SW Unit - Area 5","9399","Services - Fees and Charges","17/08/2016"
"Wolverhampton City Council","http://opendatacommunities.org/id/metropolitan-district-council/wolverhampton","WWW.CLOCKINGSYSTEMS.CO","198.00","Parks - Ranger Service","5999","Equipment - Purchase","17/08/2016"
"Wolverhampton City Council","http://opendatacommunities.org/id/metropolitan-district-council/wolverhampton","ROYAL MAIL  0845606040","1.50","Revenues","9402","Comms - Postage","17/08/2016"
"Wolverhampton City Council","http://opendatacommunities.org/id/metropolitan-district-council/wolverhampton","WWW.LIGHTS4FUN.CO.UK","44.81","Technician","5065","Equipment - R & M","17/08/2016"
"Wolverhampton City Council","http://opendatacommunities.org/id/metropolitan-district-council/wolverhampton","THEPLASTICSHOP","245.40","Generic Marketing","7399","Materials","17/08/2016"
"Wolverhampton City Council","http://opendatacommunities.org/id/metropolitan-district-council/wolverhampton","BARCLAYS BANK PLC","200.00","CIN/CP S17 SW Unit - Area 5","6011","Financial Assistance In Exceptional Circ","17/08/2016"
"Wolverhampton City Council","http://opendatacommunities.org/id/metropolitan-district-council/wolverhampton","BARCLAYS BANK PLC","200.00","CIN/CP S17 SW Unit - Area 5","6011","Financial Assistance In Exceptional Circ","17/08/2016"
"Wolverhampton City Council","http://opendatacommunities.org/id/metropolitan-district-council/wolverhampton","TRAINLINE","64.36","Safeguarding Admin Resource","4112","Public Transport","17/08/2016"
"Wolverhampton City Council","http://opendatacommunities.org/id/metropolitan-district-council/wolverhampton","WOLVERHAMPTON CITY COU","21.00","The Little Civic","9399","Services - General Licences","17/08/2016"
"Wolverhampton City Council","http://opendatacommunities.org/id/metropolitan-district-council/wolverhampton","AMAZON UK RETAIL AMAZO","22.48","School Crossing Patrol","5999","Equipment - Purchase","17/08/2016"
"Wolverhampton City Council","http://opendatacommunities.org/id/metropolitan-district-council/wolverhampton","PURE360","224.00","Civic Halls Non Direct Management A/C","7372","Marketing \ Non-staff advertising","16/08/2016"
"Wolverhampton City Council","http://opendatacommunities.org/id/metropolitan-district-council/wolverhampton","ESENDEX LIMITED","37.50","Civic Halls Non Direct Management A/C","4814","Comms - Telephone Call charges","16/08/2016"
"Wolverhampton City Council","http://opendatacommunities.org/id/metropolitan-district-council/wolverhampton","EXPEDIA","79.08","Mental Health Assessment & Care Mgmt","4722","Accommodation Costs","16/08/2016"
"Wolverhampton City Council","http://opendatacommunities.org/id/metropolitan-district-council/wolverhampton","HIRE STATION-LTD","65.00","Fountain Maintenance","7394","R&M - Departmental planned (external)","16/08/2016"
"Wolverhampton City Council","http://opendatacommunities.org/id/metropolitan-district-council/wolverhampton","CUMMINGS BROTHERS LOCK","93.78","Parks/Open Spaces - R & M","7399","Equipment - Purchase","16/08/2016"
"Wolverhampton City Council","http://opendatacommunities.org/id/metropolitan-district-council/wolverhampton","MEDIA & COMMUNICATIONS","80.00","Revenues","4812","Comms - Mobile Telephones","16/08/2016"
"Wolverhampton City Council","http://opendatacommunities.org/id/metropolitan-district-council/wolverhampton","DVLA VEHICLE TAX","187.50","Towers Outdoor Education Centre","9399","Equipment - Purchase","16/08/2016"
"Wolverhampton City Council","http://opendatacommunities.org/id/metropolitan-district-council/wolverhampton","NOTEMACHINE","250.00","CIN/CP S17 SW Unit - Area 6","6011","Financial Assistance In Exceptional Circ","16/08/2016"
"Wolverhampton City Council","http://opendatacommunities.org/id/metropolitan-district-council/wolverhampton","TOOLSTOP","30.00","Technician","5999","Equipment - Purchase","16/08/2016"
"Wolverhampton City Council","http://opendatacommunities.org/id/metropolitan-district-council/wolverhampton","WICKES BUILDING","211.21","Contemporary Gallery","5211","Materials","16/08/2016"
"Wolverhampton City Council","http://opendatacommunities.org/id/metropolitan-district-council/wolverhampton","AXMINSTER.CO.UK","44.13","Technician","5211","Equipment - Purchase","16/08/2016"
"Wolverhampton City Council","http://opendatacommunities.org/id/metropolitan-district-council/wolverhampton","THEPLASTICSHOP","113.17","Generic Marketing","7399","Materials","16/08/2016"
"Wolverhampton City Council","http://opendatacommunities.org/id/metropolitan-district-council/wolverhampton","TWITTER ADVERTISING","40.00","Communications & Marketing - General","7311","Marketing \ Non-staff advertising","16/08/2016"
"Wolverhampton City Council","http://opendatacommunities.org/id/metropolitan-district-council/wolverhampton","ASDA HOME SHOPPING","-2.44","Upper Pendeford Farm Childrens Home","5411","Provisions (Not for resale)","16/08/2016"
"Wolverhampton City Council","http://opendatacommunities.org/id/metropolitan-district-council/wolverhampton","ASDA HOME SHOPPING","316.85","Upper Pendeford Farm Childrens Home","5411","Provisions (Not for resale)","16/08/2016"
"Wolverhampton City Council","http://opendatacommunities.org/id/metropolitan-district-council/wolverhampton","ALDI","21.92","EIP Locality 8","5411","Equipment - Purchase","16/08/2016"
"Wolverhampton City Council","http://opendatacommunities.org/id/metropolitan-district-council/wolverhampton","THE CONSORTIUM/WMS","165.60","Education And Access","5968","Subscriptions","16/08/2016"
"Wolverhampton City Council","http://opendatacommunities.org/id/metropolitan-district-council/wolverhampton","HOMEBASE LTD 021","12.33","Craftplay","5211","Materials","16/08/2016"
"Wolverhampton City Council","http://opendatacommunities.org/id/metropolitan-district-council/wolverhampton","TIMPSON LTD","30.00","Blakenhall Commty & Healthy Living Ctr","7251","Equipment - R & M","16/08/2016"
"Wolverhampton City Council","http://opendatacommunities.org/id/metropolitan-district-council/wolverhampton","NAT GEO SOCIETY","65.00","Global Budgets","2741","Books","16/08/2016"
"Wolverhampton City Council","http://opendatacommunities.org/id/metropolitan-district-council/wolverhampton","ASDA HOME SHOPPING","81.37","Ernest Bold Court","5411","Provisions (Not for resale)","16/08/2016"
"Wolverhampton City Council","http://opendatacommunities.org/id/metropolitan-district-council/wolverhampton","NOTEMACHINE","250.00","CIN/CP S17 SW Unit - Area 6","6011","Financial Assistance In Exceptional Circ","16/08/2016"
"Wolverhampton City Council","http://opendatacommunities.org/id/metropolitan-district-council/wolverhampton","WWW.ICO.GOV.UK","35.00","Box Office Administration","9399","Services - General Licences","16/08/2016"
"Wolverhampton City Council","http://opendatacommunities.org/id/metropolitan-district-council/wolverhampton","PAYPAL  THEROTA","162.18","Civic Halls Non Direct Management A/C","5735","Marketing \ Non-staff advertising","16/08/2016"
"Wolverhampton City Council","http://opendatacommunities.org/id/metropolitan-district-council/wolverhampton","Virgintrains.co.uk","100.40","LAC Team","4112","Public Transport","15/08/2016"
"Wolverhampton City Council","http://opendatacommunities.org/id/metropolitan-district-council/wolverhampton","WOLVERHAMPTON CITY COU","17.50","Blakenhall Commty & Healthy Living Ctr","9399","Services - Fees and Charges","15/08/2016"
"Wolverhampton City Council","http://opendatacommunities.org/id/metropolitan-district-council/wolverhampton","SQUARESPACE INC.","183.56","Learning Technologies","7372","Subscriptions","15/08/2016"
"Wolverhampton City Council","http://opendatacommunities.org/id/metropolitan-district-council/wolverhampton","BME TRAVEL","350.00","Technical Support","4121","Training Expenses","15/08/2016"
"Wolverhampton City Council","http://opendatacommunities.org/id/metropolitan-district-council/wolverhampton","IMPERIAL WAR MUSEUM","62.00","Art Gallery","7991","Equipment - Purchase","15/08/2016"
"Wolverhampton City Council","http://opendatacommunities.org/id/metropolitan-district-council/wolverhampton","ASDA HOME SHOPPING","-0.63","Ernest Bold Court","5411","Provisions (Not for resale)","15/08/2016"
"Wolverhampton City Council","http://opendatacommunities.org/id/metropolitan-district-council/wolverhampton","ASDA HOME SHOPPING","-1.70","Ernest Bold Court","5411","Provisions (Not for resale)","15/08/2016"
"Wolverhampton City Council","http://opendatacommunities.org/id/metropolitan-district-council/wolverhampton","ASDA HOME SHOPPING","100.67","Ernest Bold Court","5411","Provisions (Not for resale)","15/08/2016"
"Wolverhampton City Council","http://opendatacommunities.org/id/metropolitan-district-council/wolverhampton","ROYAL CARPETS","465.83","LAC Transitions Team","5713","Client Allowances","15/08/2016"
"Wolverhampton City Council","http://opendatacommunities.org/id/metropolitan-district-council/wolverhampton","IKEA SACAT","112.50","Aldersley Leisure Village","5719","Equipment - Purchase","15/08/2016"
"Wolverhampton City Council","http://opendatacommunities.org/id/metropolitan-district-council/wolverhampton","EXPEDIA","111.55","Mental Health Assessment & Care Mgmt","4722","Accommodation Costs","15/08/2016"
"Wolverhampton City Council","http://opendatacommunities.org/id/metropolitan-district-council/wolverhampton","SAINSBURYS SACAT (2340","2.53","Mayoral Expenses","5411","Hospitality","15/08/2016"
"Wolverhampton City Council","http://opendatacommunities.org/id/metropolitan-district-council/wolverhampton","FASTVUE.CO","720.00","Strategic ICTS (ICT Serv Budget)","5734","Computing - Purchase of Software","15/08/2016"
"Wolverhampton City Council","http://opendatacommunities.org/id/metropolitan-district-council/wolverhampton","VUE ITCERTIFICATIONVUE","113.00","Strategic ICTS (ICT Serv Budget)","8299","Training Expenses","15/08/2016"
"Wolverhampton City Council","http://opendatacommunities.org/id/metropolitan-district-council/wolverhampton","VUE ITCERTIFICATIONVUE","113.00","Strategic ICTS (ICT Serv Budget)","8299","Training Expenses","15/08/2016"
"Wolverhampton City Council","http://opendatacommunities.org/id/metropolitan-district-council/wolverhampton","VUE ITCERTIFICATIONVUE","113.00","Strategic ICTS (ICT Serv Budget)","8299","Training Expenses","15/08/2016"
"Wolverhampton City Council","http://opendatacommunities.org/id/metropolitan-district-council/wolverhampton","Virgintrains.co.uk","53.55","Members Expenses","4112","Public Transport","15/08/2016"
"Wolverhampton City Council","http://opendatacommunities.org/id/metropolitan-district-council/wolverhampton","Amazon UK Marketplace","6.23","Members Expenses","5942","Equipment - Purchase","15/08/2016"
"Wolverhampton City Council","http://opendatacommunities.org/id/metropolitan-district-council/wolverhampton","WM MORRISON 024","2.50","Bert Williams Leisure Centre","5411","Stationery","15/08/2016"
"Wolverhampton City Council","http://opendatacommunities.org/id/metropolitan-district-council/wolverhampton","THE QUALITY HOTEL WOLV","59.00","LAC Team","7011","Financial Assistance In Exceptional Circ","15/08/2016"
"Wolverhampton City Council","http://opendatacommunities.org/id/metropolitan-district-council/wolverhampton","LOVE2SHOP.CO.UK","100.00","Assistant Director - Public Health","8641","Educ Trips, Holidays, Outings, Activity","15/08/2016"
"Wolverhampton City Council","http://opendatacommunities.org/id/metropolitan-district-council/wolverhampton","S & B WASTE","166.50","Old Hall Street Main","4900","Grounds Maintenance - Non Contract","15/08/2016"
"Wolverhampton City Council","http://opendatacommunities.org/id/metropolitan-district-council/wolverhampton","WLY COMPLETESAVE.CO.UK","-1.00","Archives","5968","Subscriptions","15/08/2016"
"Wolverhampton City Council","http://opendatacommunities.org/id/metropolitan-district-council/wolverhampton","ARGOS LTD","-83.32","Independent Living Service","5310","Equipment - Purchase","15/08/2016"
"Wolverhampton City Council","http://opendatacommunities.org/id/metropolitan-district-council/wolverhampton","CUMMINGS BROTHERS LOCK","25.00","Caretakers Community Centre","7399","R&M - Departmental planned (external)","15/08/2016"
"Wolverhampton City Council","http://opendatacommunities.org/id/metropolitan-district-council/wolverhampton","CENTURY ELECTRICAL WHO","66.75","Hickman Avenue Depot","5065","R&M - Departmental planned (external)","15/08/2016"
"Wolverhampton City Council","http://opendatacommunities.org/id/metropolitan-district-council/wolverhampton","Virgintrains.co.uk","86.40","Adoption and Residence Team & Allowances","4112","Public Transport","12/08/2016"
"Wolverhampton City Council","http://opendatacommunities.org/id/metropolitan-district-council/wolverhampton","PO LOW HILL 1592","150.00","46a, Second Avenue, Low Hill","6011","Services - Supplies & Services to users","12/08/2016"
"Wolverhampton City Council","http://opendatacommunities.org/id/metropolitan-district-council/wolverhampton","INSIGHT SECURITY","66.79","Parks - South West Area Management","5065","Equipment - Purchase","12/08/2016"
"Wolverhampton City Council","http://opendatacommunities.org/id/metropolitan-district-council/wolverhampton","TOOLSTOP","111.67","Technician","5999","Equipment - Purchase","12/08/2016"
"Wolverhampton City Council","http://opendatacommunities.org/id/metropolitan-district-council/wolverhampton","WICKES BUILDING","85.38","Technical Material","5211","Materials","12/08/2016"
"Wolverhampton City Council","http://opendatacommunities.org/id/metropolitan-district-council/wolverhampton","AXMINSTER.CO.UK","530.21","Technician","5211","Equipment - Purchase","12/08/2016"
"Wolverhampton City Council","http://opendatacommunities.org/id/metropolitan-district-council/wolverhampton","Amazon Svcs Europe,SAR","56.00","Site Management Health & Safety","5942","Books","12/08/2016"
"Wolverhampton City Council","http://opendatacommunities.org/id/metropolitan-district-council/wolverhampton","Amazon UK Marketplace","5.99","EIP Locality 1","5942","Stationery","12/08/2016"
"Wolverhampton City Council","http://opendatacommunities.org/id/metropolitan-district-council/wolverhampton","FSPRG.COM INFFUSE.COM","5.05","Technical Support","5734","Subscriptions","12/08/2016"
"Wolverhampton City Council","http://opendatacommunities.org/id/metropolitan-district-council/wolverhampton","WICKES","5.41","Duke Street Bungalows","5211","Equipment - R & M","12/08/2016"
"Wolverhampton City Council","http://opendatacommunities.org/id/metropolitan-district-council/wolverhampton","WEST COAST TRAINS","4.60","Art Gallery","4112","Public Transport","12/08/2016"
"Wolverhampton City Council","http://opendatacommunities.org/id/metropolitan-district-council/wolverhampton","JONES SKIP HIRE (WOLVE","176.12","Vulnerable Young Persons Team","7399","Equipment - Purchase","12/08/2016"
"Wolverhampton City Council","http://opendatacommunities.org/id/metropolitan-district-council/wolverhampton","SAINSBURYS 2040","13.54","Ernest Bold Court","5411","Provisions (Not for resale)","12/08/2016"
"Wolverhampton City Council","http://opendatacommunities.org/id/metropolitan-district-council/wolverhampton","COMWALESLTD","35.69","Environmental Health - Pub Prot - Gen","7372","Equipment - Purchase","12/08/2016"
"Wolverhampton City Council","http://opendatacommunities.org/id/metropolitan-district-council/wolverhampton","PAYPAL  MADSUPPLIES","129.54","Environmental Health - Pub Prot - Gen","5932","Equipment - Purchase","12/08/2016"
"Wolverhampton City Council","http://opendatacommunities.org/id/metropolitan-district-council/wolverhampton","SUSTAINABLE FURNITURE","1190.00","Bantock House Museum","5712","Equipment - Purchase","12/08/2016"
"Wolverhampton City Council","http://opendatacommunities.org/id/metropolitan-district-council/wolverhampton","NIJJAR SPRMK LTD 48994","209.98","Ekta Day Centre","5411","Provisions (Not for resale)","12/08/2016"
"Wolverhampton City Council","http://opendatacommunities.org/id/metropolitan-district-council/wolverhampton","Amazon UK Marketplace","7.48","Children & Family Contact Services","5942","Books","12/08/2016"
"Wolverhampton City Council","http://opendatacommunities.org/id/metropolitan-district-council/wolverhampton","Virgintrains.co.uk","86.40","Fostering Team & Allowances","4112","Public Transport","12/08/2016"
"Wolverhampton City Council","http://opendatacommunities.org/id/metropolitan-district-council/wolverhampton","CILEX LAW SCHOOL LIMIT","8.33","Legal Services","8244","Training Expenses","12/08/2016"
"Wolverhampton City Council","http://opendatacommunities.org/id/metropolitan-district-council/wolverhampton","CUMMINGS BROTHERS LOCK","10.00","Adoption and Residence Team & Allowances","7399","Equipment - Purchase","12/08/2016"
"Wolverhampton City Council","http://opendatacommunities.org/id/metropolitan-district-council/wolverhampton","WEAVING MACHINERY","109.42","Northicote Farm","5072","Equipment - Purchase","11/08/2016"
"Wolverhampton City Council","http://opendatacommunities.org/id/metropolitan-district-council/wolverhampton","ARGOS RETAIL GROUP","224.12","LAC Transitions Team","5310","Client Allowances","11/08/2016"
"Wolverhampton City Council","http://opendatacommunities.org/id/metropolitan-district-council/wolverhampton","ARGOS RETAIL GROUP","83.32","LAC Transitions Team","5310","Client Allowances","11/08/2016"
"Wolverhampton City Council","http://opendatacommunities.org/id/metropolitan-district-council/wolverhampton","WWW.KITEPACKAGING.CO.U","289.17","Technical Material","5085","Equipment - Purchase","11/08/2016"
"Wolverhampton City Council","http://opendatacommunities.org/id/metropolitan-district-council/wolverhampton","SAFE TOTS LTD","10.40","Maintenance & Technical Materials","5641","Equipment - Purchase","11/08/2016"
"Wolverhampton City Council","http://opendatacommunities.org/id/metropolitan-district-council/wolverhampton","FACEBK 8NZ2L9SB92","58.80","Communications & Marketing - General","7311","Marketing \ Non-staff advertising","11/08/2016"
"Wolverhampton City Council","http://opendatacommunities.org/id/metropolitan-district-council/wolverhampton","FACEBK 7NZ2L9SB92","541.36","Communications & Marketing - General","7311","Marketing \ Non-staff advertising","11/08/2016"
"Wolverhampton City Council","http://opendatacommunities.org/id/metropolitan-district-council/wolverhampton","LION PICTURE FRAMING S","117.35","Creative Studies Delivery Area","5999","Equipment - Purchase","11/08/2016"
"Wolverhampton City Council","http://opendatacommunities.org/id/metropolitan-district-council/wolverhampton","LOYD WEDNESFIELD WOLVE","200.00","EIP Locality 8","6011","Equipment - Purchase","11/08/2016"
"Wolverhampton City Council","http://opendatacommunities.org/id/metropolitan-district-council/wolverhampton","Amazon Svcs Europe,SAR","-217.92","Private Sector Housing","5942","Equipment - Purchase","11/08/2016"
"Wolverhampton City Council","http://opendatacommunities.org/id/metropolitan-district-council/wolverhampton","PC WORLD","12.50","Condition Surveys","5732","Equipment - Purchase","11/08/2016"
"Wolverhampton City Council","http://opendatacommunities.org/id/metropolitan-district-council/wolverhampton","POST OFFICE COUNTER","112.00","Carers Support","9402","Comms - Postage","11/08/2016"
"Wolverhampton City Council","http://opendatacommunities.org/id/metropolitan-district-council/wolverhampton","WIX.COM","1.90","Technical Support","5968","Subscriptions","11/08/2016"
"Wolverhampton City Council","http://opendatacommunities.org/id/metropolitan-district-council/wolverhampton","GRO HM PASSPORT OFFICE","9.25","LAC Team","9399","Financial Assistance In Exceptional Circ","11/08/2016"
"Wolverhampton City Council","http://opendatacommunities.org/id/metropolitan-district-council/wolverhampton","Amazon EU","9.87","School Crossing Patrol","5969","Equipment - Purchase","11/08/2016"
"Wolverhampton City Council","http://opendatacommunities.org/id/metropolitan-district-council/wolverhampton","WWW.SEVERNTRENTSEARCHE","420.00","Disposal Costs","4900","Services - Professional Fees","11/08/2016"
"Wolverhampton City Council","http://opendatacommunities.org/id/metropolitan-district-council/wolverhampton","EXPEDIA","58.25","Mental Health Assessment & Care Mgmt","4722","Accommodation Costs","11/08/2016"
"Wolverhampton City Council","http://opendatacommunities.org/id/metropolitan-district-council/wolverhampton","WOLVERHAMPTON ART","4.50","Education And Access","8299","Catering","10/08/2016"
"Wolverhampton City Council","http://opendatacommunities.org/id/metropolitan-district-council/wolverhampton","WOLVERHAMPTON ART","12.87","Education And Access","8299","Catering","10/08/2016"
"Wolverhampton City Council","http://opendatacommunities.org/id/metropolitan-district-council/wolverhampton","STAFFORDSHIRE COUNTY C","10.00","LAC Team","9399","Financial Assistance In Exceptional Circ","10/08/2016"
"Wolverhampton City Council","http://opendatacommunities.org/id/metropolitan-district-council/wolverhampton","ASDA SUPERSTORE","10.00","CIN/CP S17 SW Unit - Area 5","5411","Provisions (Not for resale)","10/08/2016"
"Wolverhampton City Council","http://opendatacommunities.org/id/metropolitan-district-council/wolverhampton","ASDA SUPERSTORE","200.00","CIN/CP S17 SW Unit - Area 5","5411","Provisions (Not for resale)","10/08/2016"
"Wolverhampton City Council","http://opendatacommunities.org/id/metropolitan-district-council/wolverhampton","WOLVES CC","88.00","CIN/CP S17 SW Unit - Area 5","9399","Services - Fees and Charges","10/08/2016"
"Wolverhampton City Council","http://opendatacommunities.org/id/metropolitan-district-council/wolverhampton","BARCLAYS BANK PLC","200.00","CIN/CP S17 SW Unit - Area 5","6011","Financial Assistance In Exceptional Circ","10/08/2016"
"Wolverhampton City Council","http://opendatacommunities.org/id/metropolitan-district-council/wolverhampton","BARCLAYS BANK PLC","200.00","CIN/CP S17 SW Unit - Area 5","6011","Financial Assistance In Exceptional Circ","10/08/2016"
"Wolverhampton City Council","http://opendatacommunities.org/id/metropolitan-district-council/wolverhampton","EXPEDIA","41.62","Mental Health Assessment & Care Mgmt","4722","Accommodation Costs","10/08/2016"
"Wolverhampton City Council","http://opendatacommunities.org/id/metropolitan-district-council/wolverhampton","Virgintrains.co.uk","55.83","Mental Health Assessment & Care Mgmt","4112","Public Transport","10/08/2016"
"Wolverhampton City Council","http://opendatacommunities.org/id/metropolitan-district-council/wolverhampton","SAINSBURYS 2040","39.00","Duke Street Bungalows","5411","Provisions (Not for resale)","10/08/2016"
"Wolverhampton City Council","http://opendatacommunities.org/id/metropolitan-district-council/wolverhampton","ARGOS RETAIL GROUP","33.32","LAC Transitions Team","5310","Independant Living Allowance","10/08/2016"
"Wolverhampton City Council","http://opendatacommunities.org/id/metropolitan-district-council/wolverhampton","ARGOS RETAIL GROUP","153.94","CIN/CP S17 SW Unit - Area 3A","5310","Furniture","10/08/2016"
"Wolverhampton City Council","http://opendatacommunities.org/id/metropolitan-district-council/wolverhampton","TESCO DIRECT","189.00","CIN/CP S17 SW Unit - Area 3A","5999","Furniture","10/08/2016"
"Wolverhampton City Council","http://opendatacommunities.org/id/metropolitan-district-council/wolverhampton","TESCO - Seller_IST_1_2","71.25","CIN/CP S17 SW Unit - Area 3A","5999","Furniture","10/08/2016"
"Wolverhampton City Council","http://opendatacommunities.org/id/metropolitan-district-council/wolverhampton","TESCO - Seller_IST_1_2","122.00","CIN/CP S17 SW Unit - Area 3A","5999","Furniture","10/08/2016"
"Wolverhampton City Council","http://opendatacommunities.org/id/metropolitan-district-council/wolverhampton","TESCO - Buy It Direct","215.75","CIN/CP S17 SW Unit - Area 3A","5999","Furniture","10/08/2016"
"Wolverhampton City Council","http://opendatacommunities.org/id/metropolitan-district-council/wolverhampton","VWO.com","46.89","City Direct","7399","Equipment - Purchase","10/08/2016"
"Wolverhampton City Council","http://opendatacommunities.org/id/metropolitan-district-council/wolverhampton","BUY BRAND TOOLS","223.00","Private Sector Housing","5251","Equipment - Purchase","10/08/2016"
"Wolverhampton City Council","http://opendatacommunities.org/id/metropolitan-district-council/wolverhampton","Amazon Svcs Europe,SAR","1194.17","Private Sector Housing","5942","Equipment - Purchase","10/08/2016"
"Wolverhampton City Council","http://opendatacommunities.org/id/metropolitan-district-council/wolverhampton","Amazon UK Marketplace","3.27","Global Budgets","5942","Books","10/08/2016"
"Wolverhampton City Council","http://opendatacommunities.org/id/metropolitan-district-council/wolverhampton","Amazon UK Marketplace","9.04","Global Budgets","5942","Books","10/08/2016"
"Wolverhampton City Council","http://opendatacommunities.org/id/metropolitan-district-council/wolverhampton","WICKES","8.82","Action for Independence","5211","Equipment - R & M","10/08/2016"
"Wolverhampton City Council","http://opendatacommunities.org/id/metropolitan-district-council/wolverhampton","CAR PARKING OFFICE","19.70","Work Related Studies","7523","Car Allowances","10/08/2016"
"Wolverhampton City Council","http://opendatacommunities.org/id/metropolitan-district-council/wolverhampton","WM MORRISON 024","11.51","Ernest Bold Court","5411","Provisions (Not for resale)","10/08/2016"
"Wolverhampton City Council","http://opendatacommunities.org/id/metropolitan-district-council/wolverhampton","TRAVELODGE","158.33","WV Active Business Support","3615","Training Expenses","09/08/2016"
"Wolverhampton City Council","http://opendatacommunities.org/id/metropolitan-district-council/wolverhampton","ARGOS LTD","53.97","Creative Studies Delivery Area","5310","Equipment - Purchase","09/08/2016"
"Wolverhampton City Council","http://opendatacommunities.org/id/metropolitan-district-council/wolverhampton","BRITANNIA WOLVERHA","31.25","LAC Transitions Team","7011","Accommodation Costs","09/08/2016"
"Wolverhampton City Council","http://opendatacommunities.org/id/metropolitan-district-council/wolverhampton","ASDA SUPERSTORE","19.17","Headstart","5411","Provisions (Not for resale)","09/08/2016"
"Wolverhampton City Council","http://opendatacommunities.org/id/metropolitan-district-council/wolverhampton","WAITROSE 696","36.78","Headstart","5411","Provisions (Not for resale)","09/08/2016"
"Wolverhampton City Council","http://opendatacommunities.org/id/metropolitan-district-council/wolverhampton","Amazon EU","9.09","Global Budgets","5969","Books","09/08/2016"
"Wolverhampton City Council","http://opendatacommunities.org/id/metropolitan-district-council/wolverhampton","SoundCloud","67.50","Art Gallery","5817","Computing - Purchase of Software","09/08/2016"
"Wolverhampton City Council","http://opendatacommunities.org/id/metropolitan-district-council/wolverhampton","GRO HM PASSPORT OFFICE","-9.25","LAC Team","9399","Financial Assistance In Exceptional Circ","09/08/2016"
"Wolverhampton City Council","http://opendatacommunities.org/id/metropolitan-district-council/wolverhampton","GRO HM PASSPORT OFFICE","27.75","LAC Team","9399","Financial Assistance In Exceptional Circ","09/08/2016"
"Wolverhampton City Council","http://opendatacommunities.org/id/metropolitan-district-council/wolverhampton","ASDA HOME SHOPPING","-0.21","Ernest Bold Court","5411","Provisions (Not for resale)","09/08/2016"
"Wolverhampton City Council","http://opendatacommunities.org/id/metropolitan-district-council/wolverhampton","ASDA HOME SHOPPING","81.15","Ernest Bold Court","5411","Provisions (Not for resale)","09/08/2016"
"Wolverhampton City Council","http://opendatacommunities.org/id/metropolitan-district-council/wolverhampton","HOMEBASE LTD 103","35.60","Wolverhampton Indoor and Open Market","5211","Materials","09/08/2016"
"Wolverhampton City Council","http://opendatacommunities.org/id/metropolitan-district-council/wolverhampton","TRAINLINE","228.17","Adoption and Residence Team & Allowances","4112","Public Transport","09/08/2016"
"Wolverhampton City Council","http://opendatacommunities.org/id/metropolitan-district-council/wolverhampton","STAFFORDSHIRE COUNTY C","10.00","Adoption and Residence Team & Allowances","9399","Services - Fees and Charges","09/08/2016"
"Wolverhampton City Council","http://opendatacommunities.org/id/metropolitan-district-council/wolverhampton","CUMMINGS BROTHERS LOCK","12.50","Assessment Team (East)","7399","Equipment - Purchase","09/08/2016"
"Wolverhampton City Council","http://opendatacommunities.org/id/metropolitan-district-council/wolverhampton","EB  THE TELEGRAPH BRIT","162.50","Service Director City Economy","7399","Conference Expenses","09/08/2016"
"Wolverhampton City Council","http://opendatacommunities.org/id/metropolitan-district-council/wolverhampton","Amazon UK Marketplace","35.19","Landscape","5942","Books","09/08/2016"
"Wolverhampton City Council","http://opendatacommunities.org/id/metropolitan-district-council/wolverhampton","ROYAL MAIL  0845606040","1.50","Revenues","9402","Comms - Postage","09/08/2016"
"Wolverhampton City Council","http://opendatacommunities.org/id/metropolitan-district-council/wolverhampton","ROYAL MAIL  0845606040","1.50","Revenues","9402","Comms - Postage","09/08/2016"
"Wolverhampton City Council","http://opendatacommunities.org/id/metropolitan-district-council/wolverhampton","ROYAL MAIL  0845606040","1.50","Revenues","9402","Comms - Postage","09/08/2016"
"Wolverhampton City Council","http://opendatacommunities.org/id/metropolitan-district-council/wolverhampton","BOOKWHEN","9.00","Craftplay","7372","Materials","08/08/2016"
"Wolverhampton City Council","http://opendatacommunities.org/id/metropolitan-district-council/wolverhampton","IKEA ONLINE","358.33","LAC Transitions Team","5719","Client Allowances","08/08/2016"
"Wolverhampton City Council","http://opendatacommunities.org/id/metropolitan-district-council/wolverhampton","ARGOS LTD","204.16","CIN/CP S17 SW Unit - Area 1","5310","Equipment - Purchase","08/08/2016"
"Wolverhampton City Council","http://opendatacommunities.org/id/metropolitan-district-council/wolverhampton","THE RANGE","45.24","Ernest Bold Court","5311","Equipment - Purchase","08/08/2016"
"Wolverhampton City Council","http://opendatacommunities.org/id/metropolitan-district-council/wolverhampton","ENTERPRISE EVENTS LTD","195.00","Central Training","5999","Training Expenses","08/08/2016"
"Wolverhampton City Council","http://opendatacommunities.org/id/metropolitan-district-council/wolverhampton","ASDA HOME SHOPPING","0.05","Ernest Bold Court","5411","Provisions (Not for resale)","08/08/2016"
"Wolverhampton City Council","http://opendatacommunities.org/id/metropolitan-district-council/wolverhampton","HOLIDAY INN EXPRSS","91.67","WV Active Business Support","7011","Training Expenses","08/08/2016"
"Wolverhampton City Council","http://opendatacommunities.org/id/metropolitan-district-council/wolverhampton","Amazon UK Marketplace","-94.01","Headstart","5999","Equipment - Purchase","08/08/2016"
"Wolverhampton City Council","http://opendatacommunities.org/id/metropolitan-district-council/wolverhampton","HM PASSPORT","90.00","LAC Team","9399","Financial Assistance In Exceptional Circ","08/08/2016"
"Wolverhampton City Council","http://opendatacommunities.org/id/metropolitan-district-council/wolverhampton","SAINSBURYS SACAT (2340","1.00","Mayoral Expenses","5411","Hospitality","08/08/2016"
"Wolverhampton City Council","http://opendatacommunities.org/id/metropolitan-district-council/wolverhampton","ASDA HOME SHOPPING","-0.69","Upper Pendeford Farm Childrens Home","5411","Provisions (Not for resale)","08/08/2016"
"Wolverhampton City Council","http://opendatacommunities.org/id/metropolitan-district-council/wolverhampton","WH SMITH","18.45","Education And Access","5994","Equipment - Purchase","08/08/2016"
"Wolverhampton City Council","http://opendatacommunities.org/id/metropolitan-district-council/wolverhampton","Amazon EU","16.87","Mayoral Expenses","5969","Equipment - Purchase","08/08/2016"
"Wolverhampton City Council","http://opendatacommunities.org/id/metropolitan-district-council/wolverhampton","TRAINLINE","66.81","Legal Services","4112","Public Transport","08/08/2016"
"Wolverhampton City Council","http://opendatacommunities.org/id/metropolitan-district-council/wolverhampton","ARGOS LTD","54.14","LAC Transitions Team","5310","Client Allowances","08/08/2016"
"Wolverhampton City Council","http://opendatacommunities.org/id/metropolitan-district-council/wolverhampton","ARGOS LTD","69.99","Meals on Wheels","5310","Equipment - Purchase","08/08/2016"
"Wolverhampton City Council","http://opendatacommunities.org/id/metropolitan-district-council/wolverhampton","Amazon Prime","79.00","Civic Halls Non Direct Management A/C","5968","Comms - Postage","08/08/2016"
"Wolverhampton City Council","http://opendatacommunities.org/id/metropolitan-district-council/wolverhampton","Amazon UK Marketplace","587.40","Strategic ICTS (ICT Serv Budget)","5942","Computing - Purchase of Hardware","08/08/2016"
"Wolverhampton City Council","http://opendatacommunities.org/id/metropolitan-district-council/wolverhampton","CUMMINGS BROTHERS LOCK","14.40","Adoption and Residence Team & Allowances","7399","Equipment - Purchase","08/08/2016"
"Wolverhampton City Council","http://opendatacommunities.org/id/metropolitan-district-council/wolverhampton","WIX.COM","93.13","Technical Support","5817","Subscriptions","08/08/2016"
"Wolverhampton City Council","http://opendatacommunities.org/id/metropolitan-district-council/wolverhampton","ROYAL WOLVERHAMPTON","1.92","Mayoral Expenses","7523","Parking Fees","08/08/2016"
"Wolverhampton City Council","http://opendatacommunities.org/id/metropolitan-district-council/wolverhampton","PREMIER INN","285.39","Strategic ICTS (ICT Serv Budget)","3811","Training Expenses","08/08/2016"
"Wolverhampton City Council","http://opendatacommunities.org/id/metropolitan-district-council/wolverhampton","B&M RETAIL","232.31","LAC Transitions Team","5310","Client Allowances","08/08/2016"
"Wolverhampton City Council","http://opendatacommunities.org/id/metropolitan-district-council/wolverhampton","THE POST OFFICE","18.75","Legal Services","9402","Comms - Postage","08/08/2016"
"Wolverhampton City Council","http://opendatacommunities.org/id/metropolitan-district-council/wolverhampton","Amazon EU","90.01","Private Sector Housing","5969","Equipment - Purchase","08/08/2016"
"Wolverhampton City Council","http://opendatacommunities.org/id/metropolitan-district-council/wolverhampton","POST OFFICE COUNTER","11.70","Fostering Team & Allowances","9402","Comms - Postage","08/08/2016"
"Wolverhampton City Council","http://opendatacommunities.org/id/metropolitan-district-council/wolverhampton","WILKO.COM","33.33","Revenues","5722","Equipment - Purchase","08/08/2016"
"Wolverhampton City Council","http://opendatacommunities.org/id/metropolitan-district-council/wolverhampton","VERIFONE TAXI/PRIVATE","40.37","CIN/CP S17 SW Unit - Area 6","4121","Client Transport","08/08/2016"
"Wolverhampton City Council","http://opendatacommunities.org/id/metropolitan-district-council/wolverhampton","BARCLAYS BANK PLC","200.00","CIN/CP S17 SW Unit - Area 6","6011","Financial Assistance In Exceptional Circ","08/08/2016"
"Wolverhampton City Council","http://opendatacommunities.org/id/metropolitan-district-council/wolverhampton","ARGOS LTD","224.99","LAC Transitions Team","5310","Client Allowances","08/08/2016"
"Wolverhampton City Council","http://opendatacommunities.org/id/metropolitan-district-council/wolverhampton","123 REG R/T","16.78","Art Gallery","5968","Computing - Purchase of Software","08/08/2016"
"Wolverhampton City Council","http://opendatacommunities.org/id/metropolitan-district-council/wolverhampton","Virgintrains.co.uk","170.60","Workforce Development","4112","Public Transport","08/08/2016"
"Wolverhampton City Council","http://opendatacommunities.org/id/metropolitan-district-council/wolverhampton","Amazon UK Marketplace","569.70","Strategic ICTS (ICT Serv Budget)","5942","Computing - Purchase of Hardware","08/08/2016"
"Wolverhampton City Council","http://opendatacommunities.org/id/metropolitan-district-council/wolverhampton","REDWINGS LODGE","401.60","CIN/CP S17 SW Unit - Area 3A","7011","Accommodation Costs","08/08/2016"
"Wolverhampton City Council","http://opendatacommunities.org/id/metropolitan-district-council/wolverhampton","ASDA HOME SHOPPING","233.92","Upper Pendeford Farm Childrens Home","5411","Provisions (Not for resale)","08/08/2016"
"Wolverhampton City Council","http://opendatacommunities.org/id/metropolitan-district-council/wolverhampton","ASDA HOME SHOPPING","97.22","Ernest Bold Court","5411","Provisions (Not for resale)","08/08/2016"
"Wolverhampton City Council","http://opendatacommunities.org/id/metropolitan-district-council/wolverhampton","WLY COMPLETESAVE.CO.UK","1.00","Archives","5968","Subscriptions","08/08/2016"
"Wolverhampton City Council","http://opendatacommunities.org/id/metropolitan-district-council/wolverhampton","POST OFFICE COUNTER","149.50","LAC Education Team (LACE)","9402","Comms - Postage","05/08/2016"
"Wolverhampton City Council","http://opendatacommunities.org/id/metropolitan-district-council/wolverhampton","WWW.SEVERNTRENTSEARCHE","290.00","Disposal Costs","4900","Services - Professional Fees","05/08/2016"
"Wolverhampton City Council","http://opendatacommunities.org/id/metropolitan-district-council/wolverhampton","Virgintrains.co.uk","128.80","Risk Management & Insurance","4112","Public Transport","05/08/2016"
"Wolverhampton City Council","http://opendatacommunities.org/id/metropolitan-district-council/wolverhampton","PAYPAL  PRINTEDMUGS","377.39","Technical Support","2741","Marketing \ Non-staff advertising","05/08/2016"
"Wolverhampton City Council","http://opendatacommunities.org/id/metropolitan-district-council/wolverhampton","Amazon EU","-3.99","Members Expenses","5969","Equipment - Purchase","05/08/2016"
"Wolverhampton City Council","http://opendatacommunities.org/id/metropolitan-district-council/wolverhampton","M6 TOLL","4.58","Mayoral Expenses","4784","Car Allowances","05/08/2016"
"Wolverhampton City Council","http://opendatacommunities.org/id/metropolitan-district-council/wolverhampton","WWW.SEVERNTRENTSEARCHE","290.00","Disposal Costs","4900","Services - Professional Fees","05/08/2016"
"Wolverhampton City Council","http://opendatacommunities.org/id/metropolitan-district-council/wolverhampton","WWW.SEVERNTRENTSEARCHE","290.00","Disposal Costs","4900","Services - Professional Fees","05/08/2016"
"Wolverhampton City Council","http://opendatacommunities.org/id/metropolitan-district-council/wolverhampton","WWW.SEVERNTRENTSEARCHE","290.00","Disposal Costs","4900","Services - Professional Fees","05/08/2016"
"Wolverhampton City Council","http://opendatacommunities.org/id/metropolitan-district-council/wolverhampton","PAYPAL  PAMS ASSESS","94.80","Strategic ICTS (ICT Serv Budget)","5734","Computing - Purchase of Software","05/08/2016"
"Wolverhampton City Council","http://opendatacommunities.org/id/metropolitan-district-council/wolverhampton","LIDL UK","2.60","Ernest Bold Court","5411","Provisions (Not for resale)","05/08/2016"
"Wolverhampton City Council","http://opendatacommunities.org/id/metropolitan-district-council/wolverhampton","BALSAMIQ","274.80","Strategic ICTS (ICT Serv Budget)","5734","Computing - Purchase of Software","05/08/2016"
"Wolverhampton City Council","http://opendatacommunities.org/id/metropolitan-district-council/wolverhampton","M6 TOLL","4.58","Mayoral Expenses","4784","Parking Fees","05/08/2016"
"Wolverhampton City Council","http://opendatacommunities.org/id/metropolitan-district-council/wolverhampton","LOYD WEDNESFIELD WOLVE","10.00","EIP Locality 8","6011","Equipment - Purchase","05/08/2016"
"Wolverhampton City Council","http://opendatacommunities.org/id/metropolitan-district-council/wolverhampton","Amazon EU","13.56","Civic Halls Non Direct Management A/C","5969","Equipment - Purchase","05/08/2016"
"Wolverhampton City Council","http://opendatacommunities.org/id/metropolitan-district-council/wolverhampton","ASLES TL&SALES LTD","390.00","Bantock House Museum","5251","Equipment - Hire","05/08/2016"
"Wolverhampton City Council","http://opendatacommunities.org/id/metropolitan-district-council/wolverhampton","UOW PRINT SERVICES","228.36","Communications & Marketing - General","8220","Training Expenses","05/08/2016"
"Wolverhampton City Council","http://opendatacommunities.org/id/metropolitan-district-council/wolverhampton","WWW.SEVERNTRENTSEARCHE","290.00","Disposal Costs","4900","Services - Professional Fees","05/08/2016"
"Wolverhampton City Council","http://opendatacommunities.org/id/metropolitan-district-council/wolverhampton","CORAM ACADEMY LTD","152.00","Fostering Team & Allowances","8398","Services - Supplies & Services to users","05/08/2016"
"Wolverhampton City Council","http://opendatacommunities.org/id/metropolitan-district-council/wolverhampton","ARGOS LTD","16.63","Ground Maintenance West","5310","Equipment - Purchase","05/08/2016"
"Wolverhampton City Council","http://opendatacommunities.org/id/metropolitan-district-council/wolverhampton","ORMONDE HOUSE HOTEL","79.17","Adoption and Residence Team & Allowances","7011","Accommodation Costs","05/08/2016"
"Wolverhampton City Council","http://opendatacommunities.org/id/metropolitan-district-council/wolverhampton","WOLVERHAMPTON TROPHY C","146.97","Learning Technologies","5999","Events","05/08/2016"
"Wolverhampton City Council","http://opendatacommunities.org/id/metropolitan-district-council/wolverhampton","E01510300000000","100.00","Headstart","6011","Financial Assistance In Exceptional Circ","05/08/2016"
"Wolverhampton City Council","http://opendatacommunities.org/id/metropolitan-district-council/wolverhampton","WEST COAST TRAINS","71.60","CIN/CP Social Work Unit - Area 5","4112","Public Transport","05/08/2016"
"Wolverhampton City Council","http://opendatacommunities.org/id/metropolitan-district-council/wolverhampton","ARGOS LTD","11.66","Benefits","5310","Equipment - Purchase","05/08/2016"
"Wolverhampton City Council","http://opendatacommunities.org/id/metropolitan-district-council/wolverhampton","LOYD WEDNESFIELD WOLVE","200.00","EIP Locality 8","6011","Equipment - Purchase","05/08/2016"
"Wolverhampton City Council","http://opendatacommunities.org/id/metropolitan-district-council/wolverhampton","Amazon UK Marketplace","12.99","Private Sector Housing","5942","Equipment - Purchase","05/08/2016"
"Wolverhampton City Council","http://opendatacommunities.org/id/metropolitan-district-council/wolverhampton","WWW.CARESHOP.CO.UK","53.33","Ernest Bold Court","5999","Equipment - Purchase","04/08/2016"
"Wolverhampton City Council","http://opendatacommunities.org/id/metropolitan-district-council/wolverhampton","MAXWELLAMEN","154.70","Northicote Farm","5261","Equipment - Purchase","04/08/2016"
"Wolverhampton City Council","http://opendatacommunities.org/id/metropolitan-district-council/wolverhampton","REGISTRARS OFFICE","30.00","Adoption and Residence Team & Allowances","8299","Training Expenses","04/08/2016"
"Wolverhampton City Council","http://opendatacommunities.org/id/metropolitan-district-council/wolverhampton","S & B WASTE","166.50","Old Hall Street Main","4900","Grounds Maintenance - Non Contract","04/08/2016"
"Wolverhampton City Council","http://opendatacommunities.org/id/metropolitan-district-council/wolverhampton","CARD FACTORY","12.02","Commissioning Disabilities","5947","Equipment - Purchase","04/08/2016"
"Wolverhampton City Council","http://opendatacommunities.org/id/metropolitan-district-council/wolverhampton","JONES SKIP HIRE (WOLVE","176.12","Vulnerable Young Persons Team","7399","Equipment - Purchase","04/08/2016"
"Wolverhampton City Council","http://opendatacommunities.org/id/metropolitan-district-council/wolverhampton","ORMONDE HOUSE HOTEL","79.17","Adoption and Residence Team & Allowances","7011","Accommodation Costs","04/08/2016"
"Wolverhampton City Council","http://opendatacommunities.org/id/metropolitan-district-council/wolverhampton","TRELLO","3.86","City Direct","5045","Computing - Purchase of Hardware","04/08/2016"
"Wolverhampton City Council","http://opendatacommunities.org/id/metropolitan-district-council/wolverhampton","WWW.CALUMETPHOTO.CO.UK","40.00","Queen St Townscape Heritage (HLF)","5946","Equipment - Purchase","04/08/2016"
"Wolverhampton City Council","http://opendatacommunities.org/id/metropolitan-district-council/wolverhampton","FACEBK YCV5896A82","40.03","Communications & Marketing - General","7311","Marketing \ Non-staff advertising","04/08/2016"
"Wolverhampton City Council","http://opendatacommunities.org/id/metropolitan-district-council/wolverhampton","TRAINLINE","184.11","CIN/CP S17 SW Unit - Area 3A","4112","Public Transport","04/08/2016"
"Wolverhampton City Council","http://opendatacommunities.org/id/metropolitan-district-council/wolverhampton","TRAINLINE","11.07","Legal Services","4112","Public Transport","04/08/2016"
"Wolverhampton City Council","http://opendatacommunities.org/id/metropolitan-district-council/wolverhampton","Amazon UK Marketplace","18.75","Corporate Procurement Unit","5942","Equipment - Purchase","04/08/2016"
"Wolverhampton City Council","http://opendatacommunities.org/id/metropolitan-district-council/wolverhampton","ASDA SUPERSTORE","33.09","Headstart","5411","Provisions (Not for resale)","04/08/2016"
"Wolverhampton City Council","http://opendatacommunities.org/id/metropolitan-district-council/wolverhampton","JONES SKIP HIRE (WOLVE","176.12","Vulnerable Young Persons Team","7399","Equipment - Purchase","04/08/2016"
"Wolverhampton City Council","http://opendatacommunities.org/id/metropolitan-district-council/wolverhampton","WWW.ICO.GOV.UK","35.00","Members Expenses","9399","Subscriptions","04/08/2016"
"Wolverhampton City Council","http://opendatacommunities.org/id/metropolitan-district-council/wolverhampton","Virgintrains.co.uk","219.00","Adoption and Residence Team & Allowances","4112","Public Transport","04/08/2016"
"Wolverhampton City Council","http://opendatacommunities.org/id/metropolitan-district-council/wolverhampton","ROYAL CARPETS","100.00","LAC Transitions Team","5713","Client Allowances","04/08/2016"
"Wolverhampton City Council","http://opendatacommunities.org/id/metropolitan-district-council/wolverhampton","E01510300000000","50.00","Emergency Duty Team","6011","Financial Assistance In Exceptional Circ","04/08/2016"
"Wolverhampton City Council","http://opendatacommunities.org/id/metropolitan-district-council/wolverhampton","WWW.EASTMIDLANDSWATER.","384.96","Central Baths","5399","Equipment - Purchase","04/08/2016"
"Wolverhampton City Council","http://opendatacommunities.org/id/metropolitan-district-council/wolverhampton","CUMMINGS BROTHERS LOCK","37.60","Caretakers Community Centre","7399","Equipment - Purchase","04/08/2016"
"Wolverhampton City Council","http://opendatacommunities.org/id/metropolitan-district-council/wolverhampton","Amazon UK Marketplace","0.00","EIP Locality 7","5942","Equipment - Purchase","04/08/2016"
"Wolverhampton City Council","http://opendatacommunities.org/id/metropolitan-district-council/wolverhampton","Amazon UK Marketplace","6.95","Members Expenses","5942","Computing - Consumables","03/08/2016"
"Wolverhampton City Council","http://opendatacommunities.org/id/metropolitan-district-council/wolverhampton","ARGOS RETAIL GROUP","224.99","LAC Transitions Team","5310","Independant Living Allowance","03/08/2016"
"Wolverhampton City Council","http://opendatacommunities.org/id/metropolitan-district-council/wolverhampton","E01577600000000","10.00","EIP Locality 3","6011","Client Transport","03/08/2016"
"Wolverhampton City Council","http://opendatacommunities.org/id/metropolitan-district-council/wolverhampton","Amazon UK Marketplace","10.10","Global Budgets","5942","Books","03/08/2016"
"Wolverhampton City Council","http://opendatacommunities.org/id/metropolitan-district-council/wolverhampton","UXPIN.com, +4869493995","76.47","City Direct","7372","Computing - Purchase of Software","03/08/2016"
"Wolverhampton City Council","http://opendatacommunities.org/id/metropolitan-district-council/wolverhampton","TRAINLINE","18.51","Legal Services","4112","Public Transport","03/08/2016"
"Wolverhampton City Council","http://opendatacommunities.org/id/metropolitan-district-council/wolverhampton","Amazon UK Marketplace","16.67","Corporate Procurement Unit","5942","Equipment - Purchase","03/08/2016"
"Wolverhampton City Council","http://opendatacommunities.org/id/metropolitan-district-council/wolverhampton","Amazon UK Marketplace","14.50","Aldersley Leisure Village","5942","Stationery","03/08/2016"
"Wolverhampton City Council","http://opendatacommunities.org/id/metropolitan-district-council/wolverhampton","THE GENERAL REGISTER O","17.35","Adoption and Residence Team & Allowances","9399","Services - Fees and Charges","03/08/2016"
"Wolverhampton City Council","http://opendatacommunities.org/id/metropolitan-district-council/wolverhampton","ELECTRO SUPPLIES.C","15.78","Revenues","5732","Equipment - Purchase","03/08/2016"
"Wolverhampton City Council","http://opendatacommunities.org/id/metropolitan-district-council/wolverhampton","ARGOS RETAIL GROUP","59.99","CIN/CP S17 SW Unit - Area 3A","5310","Furniture","03/08/2016"
"Wolverhampton City Council","http://opendatacommunities.org/id/metropolitan-district-council/wolverhampton","WM MORRISONS","22.33","Safeguarding Board - Childrens","5411","Provisions (Not for resale)","03/08/2016"
"Wolverhampton City Council","http://opendatacommunities.org/id/metropolitan-district-council/wolverhampton","ARGOS LTD","25.00","Craftplay","5310","Equipment - Purchase","03/08/2016"
"Wolverhampton City Council","http://opendatacommunities.org/id/metropolitan-district-council/wolverhampton","FLYBE.COM FMWKZ0       0","171.65","CIN/CP S17 SW Unit - Area 8","4511","Client Transport","03/08/2016"
"Wolverhampton City Council","http://opendatacommunities.org/id/metropolitan-district-council/wolverhampton","SAINSBURYS (2340)","6.67","Revenues","5411","Provisions (Not for resale)","03/08/2016"
"Wolverhampton City Council","http://opendatacommunities.org/id/metropolitan-district-council/wolverhampton","TVLICENSING.CO.UK","145.50","Blakenhall Commty & Healthy Living Ctr","7392","Services - General Licences","03/08/2016"
"Wolverhampton City Council","http://opendatacommunities.org/id/metropolitan-district-council/wolverhampton","ARGOS RETAIL GROUP","331.94","CIN/CP S17 SW Unit - Area 3A","5310","Furniture","03/08/2016"
"Wolverhampton City Council","http://opendatacommunities.org/id/metropolitan-district-council/wolverhampton","B&M RETAIL","20.85","LAC Transitions Team","5310","Client Allowances","02/08/2016"
"Wolverhampton City Council","http://opendatacommunities.org/id/metropolitan-district-council/wolverhampton","FTPE WEBTIS 1","95.00","LAC Transitions Team","4112","Public Transport","02/08/2016"
"Wolverhampton City Council","http://opendatacommunities.org/id/metropolitan-district-council/wolverhampton","Virgintrains.co.uk","164.60","LAC Team","4112","Public Transport","02/08/2016"
"Wolverhampton City Council","http://opendatacommunities.org/id/metropolitan-district-council/wolverhampton","Virgintrains.co.uk","87.30","Private Sector Housing","4112","Public Transport","02/08/2016"
"Wolverhampton City Council","http://opendatacommunities.org/id/metropolitan-district-council/wolverhampton","ASDA HOME SHOPPING","86.48","Ernest Bold Court","5411","Provisions (Not for resale)","02/08/2016"
"Wolverhampton City Council","http://opendatacommunities.org/id/metropolitan-district-council/wolverhampton","J. LLOYD A'L FAB CYF","95.28","Towers Outdoor Education Centre","5039","Materials","02/08/2016"
"Wolverhampton City Council","http://opendatacommunities.org/id/metropolitan-district-council/wolverhampton","SUITES AND BEDS","154.17","LAC Transitions Team","5712","Client Allowances","02/08/2016"
"Wolverhampton City Council","http://opendatacommunities.org/id/metropolitan-district-council/wolverhampton","Amazon EU","16.65","Members Expenses","5969","Equipment - Purchase","02/08/2016"
"Wolverhampton City Council","http://opendatacommunities.org/id/metropolitan-district-council/wolverhampton","REDWINGS LODGE","39.95","CIN/CP S17 SW Unit - Area 7","7011","Accommodation Costs","02/08/2016"
"Wolverhampton City Council","http://opendatacommunities.org/id/metropolitan-district-council/wolverhampton","FTPE WEBTIS 1","102.00","LAC Transitions Team","4112","Public Transport","02/08/2016"
"Wolverhampton City Council","http://opendatacommunities.org/id/metropolitan-district-council/wolverhampton","TESCO DIRECT","181.95","LAC Transitions Team","5999","Client Allowances","02/08/2016"
"Wolverhampton City Council","http://opendatacommunities.org/id/metropolitan-district-council/wolverhampton","SAINSBURYS SACAT 2040","5.00","Duke Street Bungalows","5411","Provisions (Not for resale)","02/08/2016"
"Wolverhampton City Council","http://opendatacommunities.org/id/metropolitan-district-council/wolverhampton","ASDA HOME SHOPPING","-0.15","Ernest Bold Court","5411","Provisions (Not for resale)","02/08/2016"
"Wolverhampton City Council","http://opendatacommunities.org/id/metropolitan-district-council/wolverhampton","TESCO DIRECT","12.42","LAC Transitions Team","5999","Client Allowances","02/08/2016"
"Wolverhampton City Council","http://opendatacommunities.org/id/metropolitan-district-council/wolverhampton","WOLVES CC","80.00","CIN/CP S17 SW Unit - Area 4","9399","Services - Fees and Charges","02/08/2016"
"Wolverhampton City Council","http://opendatacommunities.org/id/metropolitan-district-council/wolverhampton","ARGOS RETAIL GROUP","176.92","LAC Transitions Team","5310","Client Allowances","02/08/2016"
"Wolverhampton City Council","http://opendatacommunities.org/id/metropolitan-district-council/wolverhampton","SAINSBURYS (2340)","3.33","Revenues","5411","Provisions (Not for resale)","02/08/2016"
"Wolverhampton City Council","http://opendatacommunities.org/id/metropolitan-district-council/wolverhampton","ASDA HOME SHOPPING","0.10","Upper Pendeford Farm Childrens Home","5411","Provisions (Not for resale)","01/08/2016"
"Wolverhampton City Council","http://opendatacommunities.org/id/metropolitan-district-council/wolverhampton","BLAS AR FWYD CYF","77.37","Towers Outdoor Education Centre","5812","Educ Trips, Holidays, Outings, Activity","01/08/2016"
"Wolverhampton City Council","http://opendatacommunities.org/id/metropolitan-district-council/wolverhampton","ARGOS RETAIL GROUP","206.93","CIN/CP S17 SW Unit - Area 3B","5310","Furniture","01/08/2016"
"Wolverhampton City Council","http://opendatacommunities.org/id/metropolitan-district-council/wolverhampton","WWW.VMSECURE.CO.UK","162.00","Technical Support","5046","Marketing \ Non-staff advertising","01/08/2016"
"Wolverhampton City Council","http://opendatacommunities.org/id/metropolitan-district-council/wolverhampton","Wix.com","46.57","Technical Support","5817","Subscriptions","01/08/2016"
"Wolverhampton City Council","http://opendatacommunities.org/id/metropolitan-district-council/wolverhampton","W M MORRISON PLC","3.63","Ernest Bold Court","5411","Provisions (Not for resale)","01/08/2016"
"Wolverhampton City Council","http://opendatacommunities.org/id/metropolitan-district-council/wolverhampton","FACEBK 7DG449SA82","3.03","Communications & Marketing - General","7311","Marketing \ Non-staff advertising","01/08/2016"
"Wolverhampton City Council","http://opendatacommunities.org/id/metropolitan-district-council/wolverhampton","Amazon UK Marketplace","26.40","Inclusion Support","5942","Books","01/08/2016"
"Wolverhampton City Council","http://opendatacommunities.org/id/metropolitan-district-council/wolverhampton","ASDA SUPERSTORE","12.80","LAC Transitions Team","5411","Client Allowances","01/08/2016"
"Wolverhampton City Council","http://opendatacommunities.org/id/metropolitan-district-council/wolverhampton","ARGOS RETAIL GROUP","41.66","Education And Access","5310","Equipment - Purchase","01/08/2016"
"Wolverhampton City Council","http://opendatacommunities.org/id/metropolitan-district-council/wolverhampton","REDWINGS LODGE","214.80","CIN/CP S17 SW Unit - Area 3A","7011","Accommodation Costs","01/08/2016"
"Wolverhampton City Council","http://opendatacommunities.org/id/metropolitan-district-council/wolverhampton","Amazon UK Marketplace","2.58","Inclusion Support","5942","Books","01/08/2016"
"Wolverhampton City Council","http://opendatacommunities.org/id/metropolitan-district-council/wolverhampton","SQUARESPACE INC.","150.33","Learning Technologies","7372","Subscriptions","01/08/2016"
"Wolverhampton City Council","http://opendatacommunities.org/id/metropolitan-district-council/wolverhampton","FACEBK U6ZCT8EA82","20.00","Communications & Marketing - General","7311","Marketing \ Non-staff advertising","01/08/2016"
"Wolverhampton City Council","http://opendatacommunities.org/id/metropolitan-district-council/wolverhampton","HOME BARGAINS","5.96","CIN/CP S17 SW Unit - Area 7","5251","Equipment - Purchase","01/08/2016"
"Wolverhampton City Council","http://opendatacommunities.org/id/metropolitan-district-council/wolverhampton","ASDA HOME SHOPPING","-0.66","Ernest Bold Court","5411","Provisions (Not for resale)","01/08/2016"
"Wolverhampton City Council","http://opendatacommunities.org/id/metropolitan-district-council/wolverhampton","WWW.NORFOLK.GOV.UK","11.00","LAC Team","9399","Financial Assistance In Exceptional Circ","01/08/2016"
"Wolverhampton City Council","http://opendatacommunities.org/id/metropolitan-district-council/wolverhampton","THE CONSORTIUM/WMS","49.95","Catalyst Arts","5968","Materials","01/08/2016"
"Wolverhampton City Council","http://opendatacommunities.org/id/metropolitan-district-council/wolverhampton","Virgintrains.co.uk","143.50","Mayoral Expenses","4112","Public Transport","01/08/2016"
"Wolverhampton City Council","http://opendatacommunities.org/id/metropolitan-district-council/wolverhampton","ASDA HOME SHOPPING","224.33","Upper Pendeford Farm Childrens Home","5411","Provisions (Not for resale)","01/08/2016"
"Wolverhampton City Council","http://opendatacommunities.org/id/metropolitan-district-council/wolverhampton","WM MORRISON FOOD.COM","155.65","Blakenhall Commty & Healthy Living Ctr","5411","Provisions (Resale)","01/08/2016"
"Wolverhampton City Council","http://opendatacommunities.org/id/metropolitan-district-council/wolverhampton","Virgintrains.co.uk","64.00","Strategic Asset Management - General","4112","Public Transport","01/08/2016"
"Wolverhampton City Council","http://opendatacommunities.org/id/metropolitan-district-council/wolverhampton","HMCOURTS-SERVICE.G","20.00","Mental Health Assessment & Care Mgmt","9222","Services - Fees and Charges","01/08/2016"
"Wolverhampton City Council","http://opendatacommunities.org/id/metropolitan-district-council/wolverhampton","FOTOSPEED","652.40","Archives","5946","Equipment - Purchase","01/08/2016"
"Wolverhampton City Council","http://opendatacommunities.org/id/metropolitan-district-council/wolverhampton","ASDA HOME SHOPPING","-1.71","Ernest Bold Court","5411","Provisions (Not for resale)","01/08/2016"
"Wolverhampton City Council","http://opendatacommunities.org/id/metropolitan-district-council/wolverhampton","FACEBK DP6R99WA92","295.04","Communications & Marketing - General","7311","Marketing \ Non-staff advertising","01/08/2016"
"Wolverhampton City Council","http://opendatacommunities.org/id/metropolitan-district-council/wolverhampton","SAIN COMPTON ROAD","40.00","Community Enablement","6011","Educ Trips, Holidays, Outings, Activity","01/08/2016"
"Wolverhampton City Council","http://opendatacommunities.org/id/metropolitan-district-council/wolverhampton","GRO HM PASSPORT OFFICE","9.25","LAC Transitions Team","9399","Client Allowances","01/08/2016"
"Wolverhampton City Council","http://opendatacommunities.org/id/metropolitan-district-council/wolverhampton","FACEBK B5TWZ8AF92","347.01","Art Gallery","7311","Marketing \ Non-staff advertising","01/08/2016"
"Wolverhampton City Council","http://opendatacommunities.org/id/metropolitan-district-council/wolverhampton","FACEBK D5TWZ8AF92","19.99","Civic Halls Non Direct Management A/C","7311","Marketing \ Non-staff advertising","01/08/2016"
"Wolverhampton City Council","http://opendatacommunities.org/id/metropolitan-district-council/wolverhampton","Cross Country","87.67","Art Gallery","4112","Public Transport","01/08/2016"
"Wolverhampton City Council","http://opendatacommunities.org/id/metropolitan-district-council/wolverhampton","ASDA HOME SHOPPING","84.54","Ernest Bold Court","5411","Provisions (Not for resale)","01/08/2016"
"Wolverhampton City Council","http://opendatacommunities.org/id/metropolitan-district-council/wolverhampton","DUNELM ONLINE ORDER","38.27","LAC Transitions Team","5714","Client Allowances","01/08/2016"
"Wolverhampton City Council","http://opendatacommunities.org/id/metropolitan-district-council/wolverhampton","J P LENNARD LTD","105.37","Central Baths","5941","Equipment - Purchase","01/08/2016"
"Wolverhampton City Council","http://opendatacommunities.org/id/metropolitan-district-council/wolverhampton","WWW.POSTURITE.CO.UK","65.94","EIP Locality 1","5021","Equipment - Purchase","01/08/2016"
"Wolverhampton City Council","http://opendatacommunities.org/id/metropolitan-district-council/wolverhampton","PAYPAL  ANOVATECHNO","550.00","Technical Material","5732","Equipment - Purchase","01/08/2016"
"Wolverhampton City Council","http://opendatacommunities.org/id/metropolitan-district-council/wolverhampton","ARGOS RETAIL GROUP","145.75","LAC Transitions Team","5310","Client Allowances","01/08/2016"
"Wolverhampton City Council","http://opendatacommunities.org/id/metropolitan-district-council/wolverhampton","ARGOS RETAIL GROUP","59.99","CIN/CP S17 SW Unit - Area 3B","5310","Furniture","01/08/2016"
"Wolverhampton City Council","http://opendatacommunities.org/id/metropolitan-district-council/wolverhampton","PREMIER INN","57.49","Mayoral Expenses","3811","Accommodation Costs","01/08/2016"
"Wolverhampton City Council","http://opendatacommunities.org/id/metropolitan-district-council/wolverhampton","FACEBK HSAYW924U2","228.27","Art Gallery","7311","Marketing \ Non-staff advertising","01/08/2016"
"Wolverhampton City Council","http://opendatacommunities.org/id/metropolitan-district-council/wolverhampton","TESCO STORES (6741)","5.70","Head of Service - LAC","5411","Provisions (Not for resale)","01/08/2016"
